{"text_format":"1","workbook":"xlsx","n_sheets":3,"sheets":["Bank Jan","PC Jan","Kasse Jan"],"not_rendered":{"charts":0,"images":0,"macros":1,"external_links":0,"defined_names":36,"comments":0,"pivot_tables":0},"unopened":[],"bounds":{"document_bytes":16777216,"sheet_cells":100000,"rows_first":2000,"rows_last":500,"rows_between":2000,"halvings":0,"cell_chars":16384,"cell_head_chars":4096},"cells_cut":0,"cells_raw":0,"read":"whole","date_system":"1900"}

{"sheet":"Bank Jan","index":0,"n_rows":570,"n_cols":12,"rows_kept":570,"cut":false,"hidden":false,"merged":[[0,9,0,10],[1,9,1,10]]}
[null,"Firma:",null,"Firma",null,null,null,null,"Monat:","Januar 2022"]
[null,"Konto:",null,"Bezeichnung",null,null,null,null,"Nummer:","1020"]
[null,null,null,null,null,null,null,null,{"$f":"SUBTOTAL(9,I6:I565)","v":0},0]
[null,"Tag","Zahlung von / an",null,"Wofür?","Beleg","Konto","MWST","Einnahmen","Ausgaben","Saldo"]
[null,"(TT.MM)",null,null,null,null,null,null,"CHF","CHF",0]
[null,null,null,null,null,null,null,null,null,null,{"$f":"IF(AND(I6=0,J6=0),0,K5+I6-J6)","v":0},1]
[null,null,null,null,null,null,null,null,null,null,{"$f":"IF(AND(I7=0,J7=0),0,K6+I7-J7)","v":0},2]
[null,null,null,null,null,null,null,null,null,null,0,3]
[null,null,null,null,null,null,null,null,null,null,0,4]
[null,null,null,null,null,null,null,null,null,null,0,5]
[null,null,null,null,null,null,null,null,null,null,0,6]
[null,null,null,null,null,null,null,null,null,null,0,7]
[null,null,null,null,null,null,null,null,null,null,0,8]
[null,null,null,null,null,null,null,null,null,null,0,9]
[null,null,null,null,null,null,null,null,null,null,{"$f":"IF(AND(I15=0,J15=0),0,K14+I15-J15)","v":0},10]
[null,null,null,null,null,null,null,null,null,null,{"$f":"IF(AND(I16=0,J16=0),0,K15+I16-J16)","v":0},11]
[null,null,null,null,null,null,null,null,null,null,{"$f":"IF(AND(I17=0,J17=0),0,K16+I17-J17)","v":0},12]
[null,null,null,null,null,null,null,null,null,null,0,13]
[null,null,null,null,null,null,null,null,null,null,0,14]
[null,null,null,null,null,null,null,null,null,null,0,15]
[null,null,null,null,null,null,null,null,null,null,0,16]
[null,null,null,null,null,null,null,null,null,null,0,17]
[null,null,null,null,null,null,null,null,null,null,0,18]
[null,null,null,null,null,null,null,null,null,null,0,19]
[null,null,null,null,null,null,null,null,null,null,0,20]
[null,null,null,null,null,null,null,null,null,null,0,21]
[null,null,null,null,null,null,null,null,null,null,0,22]
[null,null,null,null,null,null,null,null,null,null,0,23]
[null,null,null,null,null,null,null,null,null,null,0,24]
[null,null,null,null,null,null,null,null,null,null,0,25]
[null,null,null,null,null,null,null,null,null,null,0,26]
[null,null,null,null,null,null,null,null,null,null,0,27]
[null,null,null,null,null,null,null,null,null,null,0,28]
[null,null,null,null,null,null,null,null,null,null,0,29]
[null,null,null,null,null,null,null,null,null,null,0,30]
[null,null,null,null,null,null,null,null,null,null,0,31]
[null,null,null,null,null,null,null,null,null,null,0,32]
[null,null,null,null,null,null,null,null,null,null,0,33]
[null,null,null,null,null,null,null,null,null,null,0,34]
[null,null,null,null,null,null,null,null,null,null,0,35]
[null,null,null,null,null,null,null,null,null,null,0,36]
[null,null,null,null,null,null,null,null,null,null,0,37]
[null,null,null,null,null,null,null,null,null,null,0,38]
[null,null,null,null,null,null,null,null,null,null,0,39]
[null,null,null,null,null,null,null,null,null,null,0,40]
[null,null,null,null,null,null,null,null,null,null,0,41]
[null,null,null,null,null,null,null,null,null,null,0,42]
[null,null,null,null,null,null,null,null,null,null,0,43]
[null,null,null,null,null,null,null,null,null,null,0,44]
[null,null,null,null,null,null,null,null,null,null,0,45]
[null,null,null,null,null,null,null,null,null,null,0,46]
[null,null,null,null,null,null,null,null,null,null,0,47]
[null,null,null,null,null,null,null,null,null,null,0,48]
[null,null,null,null,null,null,null,null,null,null,0,49]
[null,null,null,null,null,null,null,null,null,null,0,50]
[null,null,null,null,null,null,null,null,null,null,0,51]
[null,null,null,null,null,null,null,null,null,null,0,52]
[null,null,null,null,null,null,null,null,null,null,0,53]
[null,null,null,null,null,null,null,null,null,null,0,54]
[null,null,null,null,null,null,null,null,null,null,0,55]
[null,null,null,null,null,null,null,null,null,null,0,56]
[null,null,null,null,null,null,null,null,null,null,0,57]
[null,null,null,null,null,null,null,null,null,null,0,58]
[null,null,null,null,null,null,null,null,null,null,0,59]
[null,null,null,null,null,null,null,null,null,null,0,60]
[null,null,null,null,null,null,null,null,null,null,0,61]
[null,null,null,null,null,null,null,null,null,null,0,62]
[null,null,null,null,null,null,null,null,null,null,0,63]
[null,null,null,null,null,null,null,null,null,null,0,64]
[null,null,null,null,null,null,null,null,null,null,0,65]
[null,null,null,null,null,null,null,null,null,null,{"$f":"IF(AND(I71=0,J71=0),0,K70+I71-J71)","v":0},66]
[null,null,null,null,null,null,null,null,null,null,0,67]
[null,null,null,null,null,null,null,null,null,null,0,68]
[null,null,null,null,null,null,null,null,null,null,0,69]
[null,null,null,null,null,null,null,null,null,null,0,70]
[null,null,null,null,null,null,null,null,null,null,0,71]
[null,null,null,null,null,null,null,null,null,null,0,72]
[null,null,null,null,null,null,null,null,null,null,0,73]
[null,null,null,null,null,null,null,null,null,null,0,74]
[null,null,null,null,null,null,null,null,null,null,0,75]
[null,null,null,null,null,null,null,null,null,null,0,76]
[null,null,null,null,null,null,null,null,null,null,0,77]
[null,null,null,null,null,null,null,null,null,null,0,78]
[null,null,null,null,null,null,null,null,null,null,0,79]
[null,null,null,null,null,null,null,null,null,null,0,80]
[null,null,null,null,null,null,null,null,null,null,0,81]
[null,null,null,null,null,null,null,null,null,null,0,82]
[null,null,null,null,null,null,null,null,null,null,0,83]
[null,null,null,null,null,null,null,null,null,null,0,84]
[null,null,null,null,null,null,null,null,null,null,0,85]
[null,null,null,null,null,null,null,null,null,null,0,86]
[null,null,null,null,null,null,null,null,null,null,0,87]
[null,null,null,null,null,null,null,null,null,null,0,88]
[null,null,null,null,null,null,null,null,null,null,0,89]
[null,null,null,null,null,null,null,null,null,null,0,90]
[null,null,null,null,null,null,null,null,null,null,0,91]
[null,null,null,null,null,null,null,null,null,null,0,92]
[null,null,null,null,null,null,null,null,null,null,0,93]
[null,null,null,null,null,null,null,null,null,null,0,94]
[null,null,null,null,null,null,null,null,null,null,0,95]
[null,null,null,null,null,null,null,null,null,null,0,96]
[null,null,null,null,null,null,null,null,null,null,0,97]
[null,null,null,null,null,null,null,null,null,null,0,98]
[null,null,null,null,null,null,null,null,null,null,0,99]
[null,null,null,null,null,null,null,null,null,null,0,100]
[null,null,null,null,null,null,null,null,null,null,0,101]
[null,null,null,null,null,null,null,null,null,null,0,102]
[null,null,null,null,null,null,null,null,null,null,0,103]
[null,null,null,null,null,null,null,null,null,null,0,104]
[null,null,null,null,null,null,null,null,null,null,0,105]
[null,null,null,null,null,null,null,null,null,null,0,106]
[null,null,null,null,null,null,null,null,null,null,0,107]
[null,null,null,null,null,null,null,null,null,null,0,108]
[null,null,null,null,null,null,null,null,null,null,0,109]
[null,null,null,null,null,null,null,null,null,null,0,110]
[null,null,null,null,null,null,null,null,null,null,0,111]
[null,null,null,null,null,null,null,null,null,null,0,112]
[null,null,null,null,null,null,null,null,null,null,0,113]
[null,null,null,null,null,null,null,null,null,null,0,114]
[null,null,null,null,null,null,null,null,null,null,0,115]
[null,null,null,null,null,null,null,null,null,null,0,116]
[null,null,null,null,null,null,null,null,null,null,0,117]
[null,null,null,null,null,null,null,null,null,null,0,118]
[null,null,null,null,null,null,null,null,null,null,0,119]
[null,null,null,null,null,null,null,null,null,null,0,120]
[null,null,null,null,null,null,null,null,null,null,0,121]
[null,null,null,null,null,null,null,null,null,null,0,122]
[null,null,null,null,null,null,null,null,null,null,0,123]
[null,null,null,null,null,null,null,null,null,null,0,124]
[null,null,null,null,null,null,null,null,null,null,0,125]
[null,null,null,null,null,null,null,null,null,null,0,126]
[null,null,null,null,null,null,null,null,null,null,0,127]
[null,null,null,null,null,null,null,null,null,null,0,128]
[null,null,null,null,null,null,null,null,null,null,0,129]
[null,null,null,null,null,null,null,null,null,null,{"$f":"IF(AND(I135=0,J135=0),0,K134+I135-J135)","v":0},130]
[null,null,null,null,null,null,null,null,null,null,0,131]
[null,null,null,null,null,null,null,null,null,null,0,132]
[null,null,null,null,null,null,null,null,null,null,0,133]
[null,null,null,null,null,null,null,null,null,null,0,134]
[null,null,null,null,null,null,null,null,null,null,0,135]
[null,null,null,null,null,null,null,null,null,null,0,136]
[null,null,null,null,null,null,null,null,null,null,0,137]
[null,null,null,null,null,null,null,null,null,null,0,138]
[null,null,null,null,null,null,null,null,null,null,0,139]
[null,null,null,null,null,null,null,null,null,null,0,140]
[null,null,null,null,null,null,null,null,null,null,0,141]
[null,null,null,null,null,null,null,null,null,null,0,142]
[null,null,null,null,null,null,null,null,null,null,0,143]
[null,null,null,null,null,null,null,null,null,null,0,144]
[null,null,null,null,null,null,null,null,null,null,0,145]
[null,null,null,null,null,null,null,null,null,null,0,146]
[null,null,null,null,null,null,null,null,null,null,0,147]
[null,null,null,null,null,null,null,null,null,null,0,148]
[null,null,null,null,null,null,null,null,null,null,0,149]
[null,null,null,null,null,null,null,null,null,null,0,150]
[null,null,null,null,null,null,null,null,null,null,0,151]
[null,null,null,null,null,null,null,null,null,null,0,152]
[null,null,null,null,null,null,null,null,null,null,0,153]
[null,null,null,null,null,null,null,null,null,null,0,154]
[null,null,null,null,null,null,null,null,null,null,0,155]
[null,null,null,null,null,null,null,null,null,null,0,156]
[null,null,null,null,null,null,null,null,null,null,0,157]
[null,null,null,null,null,null,null,null,null,null,0,158]
[null,null,null,null,null,null,null,null,null,null,0,159]
[null,null,null,null,null,null,null,null,null,null,0,160]
[null,null,null,null,null,null,null,null,null,null,0,161]
[null,null,null,null,null,null,null,null,null,null,0,162]
[null,null,null,null,null,null,null,null,null,null,0,163]
[null,null,null,null,null,null,null,null,null,null,0,164]
[null,null,null,null,null,null,null,null,null,null,0,165]
[null,null,null,null,null,null,null,null,null,null,0,166]
[null,null,null,null,null,null,null,null,null,null,0,167]
[null,null,null,null,null,null,null,null,null,null,0,168]
[null,null,null,null,null,null,null,null,null,null,0,169]
[null,null,null,null,null,null,null,null,null,null,0,170]
[null,null,null,null,null,null,null,null,null,null,0,171]
[null,null,null,null,null,null,null,null,null,null,0,172]
[null,null,null,null,null,null,null,null,null,null,0,173]
[null,null,null,null,null,null,null,null,null,null,0,174]
[null,null,null,null,null,null,null,null,null,null,0,175]
[null,null,null,null,null,null,null,null,null,null,0,176]
[null,null,null,null,null,null,null,null,null,null,0,177]
[null,null,null,null,null,null,null,null,null,null,0,178]
[null,null,null,null,null,null,null,null,null,null,0,179]
[null,null,null,null,null,null,null,null,null,null,0,180]
[null,null,null,null,null,null,null,null,null,null,0,181]
[null,null,null,null,null,null,null,null,null,null,0,182]
[null,null,null,null,null,null,null,null,null,null,0,183]
[null,null,null,null,null,null,null,null,null,null,0,184]
[null,null,null,null,null,null,null,null,null,null,0,185]
[null,null,null,null,null,null,null,null,null,null,0,186]
[null,null,null,null,null,null,null,null,null,null,0,187]
[null,null,null,null,null,null,null,null,null,null,0,188]
[null,null,null,null,null,null,null,null,null,null,0,189]
[null,null,null,null,null,null,null,null,null,null,0,190]
[null,null,null,null,null,null,null,null,null,null,0,191]
[null,null,null,null,null,null,null,null,null,null,0,192]
[null,null,null,null,null,null,null,null,null,null,0,193]
[null,null,null,null,null,null,null,null,null,null,{"$f":"IF(AND(I199=0,J199=0),0,K198+I199-J199)","v":0},194]
[null,null,null,null,null,null,null,null,null,null,0,195]
[null,null,null,null,null,null,null,null,null,null,0,196]
[null,null,null,null,null,null,null,null,null,null,0,197]
[null,null,null,null,null,null,null,null,null,null,0,198]
[null,null,null,null,null,null,null,null,null,null,0,199]
[null,null,null,null,null,null,null,null,null,null,0,200]
[null,null,null,null,null,null,null,null,null,null,0,201]
[null,null,null,null,null,null,null,null,null,null,0,202]
[null,null,null,null,null,null,null,null,null,null,0,203]
[null,null,null,null,null,null,null,null,null,null,0,204]
[null,null,null,null,null,null,null,null,null,null,0,205]
[null,null,null,null,null,null,null,null,null,null,0,206]
[null,null,null,null,null,null,null,null,null,null,0,207]
[null,null,null,null,null,null,null,null,null,null,0,208]
[null,null,null,null,null,null,null,null,null,null,0,209]
[null,null,null,null,null,null,null,null,null,null,0,210]
[null,null,null,null,null,null,null,null,null,null,0,211]
[null,null,null,null,null,null,null,null,null,null,0,212]
[null,null,null,null,null,null,null,null,null,null,0,213]
[null,null,null,null,null,null,null,null,null,null,0,214]
[null,null,null,null,null,null,null,null,null,null,0,215]
[null,null,null,null,null,null,null,null,null,null,0,216]
[null,null,null,null,null,null,null,null,null,null,0,217]
[null,null,null,null,null,null,null,null,null,null,0,218]
[null,null,null,null,null,null,null,null,null,null,0,219]
[null,null,null,null,null,null,null,null,null,null,0,220]
[null,null,null,null,null,null,null,null,null,null,0,221]
[null,null,null,null,null,null,null,null,null,null,0,222]
[null,null,null,null,null,null,null,null,null,null,0,223]
[null,null,null,null,null,null,null,null,null,null,0,224]
[null,null,null,null,null,null,null,null,null,null,0,225]
[null,null,null,null,null,null,null,null,null,null,0,226]
[null,null,null,null,null,null,null,null,null,null,0,227]
[null,null,null,null,null,null,null,null,null,null,0,228]
[null,null,null,null,null,null,null,null,null,null,0,229]
[null,null,null,null,null,null,null,null,null,null,0,230]
[null,null,null,null,null,null,null,null,null,null,0,231]
[null,null,null,null,null,null,null,null,null,null,0,232]
[null,null,null,null,null,null,null,null,null,null,0,233]
[null,null,null,null,null,null,null,null,null,null,0,234]
[null,null,null,null,null,null,null,null,null,null,0,235]
[null,null,null,null,null,null,null,null,null,null,0,236]
[null,null,null,null,null,null,null,null,null,null,0,237]
[null,null,null,null,null,null,null,null,null,null,0,238]
[null,null,null,null,null,null,null,null,null,null,0,239]
[null,null,null,null,null,null,null,null,null,null,0,240]
[null,null,null,null,null,null,null,null,null,null,0,241]
[null,null,null,null,null,null,null,null,null,null,0,242]
[null,null,null,null,null,null,null,null,null,null,0,243]
[null,null,null,null,null,null,null,null,null,null,0,244]
[null,null,null,null,null,null,null,null,null,null,0,245]
[null,null,null,null,null,null,null,null,null,null,0,246]
[null,null,null,null,null,null,null,null,null,null,0,247]
[null,null,null,null,null,null,null,null,null,null,0,248]
[null,null,null,null,null,null,null,null,null,null,0,249]
[null,null,null,null,null,null,null,null,null,null,0,250]
[null,null,null,null,null,null,null,null,null,null,0,251]
[null,null,null,null,null,null,null,null,null,null,0,252]
[null,null,null,null,null,null,null,null,null,null,0,253]
[null,null,null,null,null,null,null,null,null,null,0,254]
[null,null,null,null,null,null,null,null,null,null,0,255]
[null,null,null,null,null,null,null,null,null,null,0,256]
[null,null,null,null,null,null,null,null,null,null,0,257]
[null,null,null,null,null,null,null,null,null,null,{"$f":"IF(AND(I263=0,J263=0),0,K262+I263-J263)","v":0},258]
[null,null,null,null,null,null,null,null,null,null,0,259]
[null,null,null,null,null,null,null,null,null,null,0,260]
[null,null,null,null,null,null,null,null,null,null,0,261]
[null,null,null,null,null,null,null,null,null,null,0,262]
[null,null,null,null,null,null,null,null,null,null,0,263]
[null,null,null,null,null,null,null,null,null,null,0,264]
[null,null,null,null,null,null,null,null,null,null,0,265]
[null,null,null,null,null,null,null,null,null,null,0,266]
[null,null,null,null,null,null,null,null,null,null,0,267]
[null,null,null,null,null,null,null,null,null,null,0,268]
[null,null,null,null,null,null,null,null,null,null,0,269]
[null,null,null,null,null,null,null,null,null,null,0,270]
[null,null,null,null,null,null,null,null,null,null,0,271]
[null,null,null,null,null,null,null,null,null,null,0,272]
[null,null,null,null,null,null,null,null,null,null,0,273]
[null,null,null,null,null,null,null,null,null,null,0,274]
[null,null,null,null,null,null,null,null,null,null,0,275]
[null,null,null,null,null,null,null,null,null,null,0,276]
[null,null,null,null,null,null,null,null,null,null,0,277]
[null,null,null,null,null,null,null,null,null,null,0,278]
[null,null,null,null,null,null,null,null,null,null,0,279]
[null,null,null,null,null,null,null,null,null,null,0,280]
[null,null,null,null,null,null,null,null,null,null,0,281]
[null,null,null,null,null,null,null,null,null,null,0,282]
[null,null,null,null,null,null,null,null,null,null,0,283]
[null,null,null,null,null,null,null,null,null,null,0,284]
[null,null,null,null,null,null,null,null,null,null,0,285]
[null,null,null,null,null,null,null,null,null,null,0,286]
[null,null,null,null,null,null,null,null,null,null,0,287]
[null,null,null,null,null,null,null,null,null,null,0,288]
[null,null,null,null,null,null,null,null,null,null,0,289]
[null,null,null,null,null,null,null,null,null,null,0,290]
[null,null,null,null,null,null,null,null,null,null,0,291]
[null,null,null,null,null,null,null,null,null,null,0,292]
[null,null,null,null,null,null,null,null,null,null,0,293]
[null,null,null,null,null,null,null,null,null,null,0,294]
[null,null,null,null,null,null,null,null,null,null,0,295]
[null,null,null,null,null,null,null,null,null,null,0,296]
[null,null,null,null,null,null,null,null,null,null,0,297]
[null,null,null,null,null,null,null,null,null,null,0,298]
[null,null,null,null,null,null,null,null,null,null,0,299]
[null,null,null,null,null,null,null,null,null,null,0,300]
[null,null,null,null,null,null,null,null,null,null,0,301]
[null,null,null,null,null,null,null,null,null,null,0,302]
[null,null,null,null,null,null,null,null,null,null,0,303]
[null,null,null,null,null,null,null,null,null,null,0,304]
[null,null,null,null,null,null,null,null,null,null,0,305]
[null,null,null,null,null,null,null,null,null,null,0,306]
[null,null,null,null,null,null,null,null,null,null,0,307]
[null,null,null,null,null,null,null,null,null,null,0,308]
[null,null,null,null,null,null,null,null,null,null,0,309]
[null,null,null,null,null,null,null,null,null,null,0,310]
[null,null,null,null,null,null,null,null,null,null,0,311]
[null,null,null,null,null,null,null,null,null,null,0,312]
[null,null,null,null,null,null,null,null,null,null,0,313]
[null,null,null,null,null,null,null,null,null,null,0,314]
[null,null,null,null,null,null,null,null,null,null,0,315]
[null,null,null,null,null,null,null,null,null,null,0,316]
[null,null,null,null,null,null,null,null,null,null,0,317]
[null,null,null,null,null,null,null,null,null,null,0,318]
[null,null,null,null,null,null,null,null,null,null,0,319]
[null,null,null,null,null,null,null,null,null,null,0,320]
[null,null,null,null,null,null,null,null,null,null,0,321]
[null,null,null,null,null,null,null,null,null,null,{"$f":"IF(AND(I327=0,J327=0),0,K326+I327-J327)","v":0},322]
[null,null,null,null,null,null,null,null,null,null,0,323]
[null,null,null,null,null,null,null,null,null,null,0,324]
[null,null,null,null,null,null,null,null,null,null,0,325]
[null,null,null,null,null,null,null,null,null,null,0,326]
[null,null,null,null,null,null,null,null,null,null,0,327]
[null,null,null,null,null,null,null,null,null,null,0,328]
[null,null,null,null,null,null,null,null,null,null,0,329]
[null,null,null,null,null,null,null,null,null,null,0,330]
[null,null,null,null,null,null,null,null,null,null,0,331]
[null,null,null,null,null,null,null,null,null,null,0,332]
[null,null,null,null,null,null,null,null,null,null,0,333]
[null,null,null,null,null,null,null,null,null,null,0,334]
[null,null,null,null,null,null,null,null,null,null,0,335]
[null,null,null,null,null,null,null,null,null,null,0,336]
[null,null,null,null,null,null,null,null,null,null,0,337]
[null,null,null,null,null,null,null,null,null,null,0,338]
[null,null,null,null,null,null,null,null,null,null,0,339]
[null,null,null,null,null,null,null,null,null,null,0,340]
[null,null,null,null,null,null,null,null,null,null,0,341]
[null,null,null,null,null,null,null,null,null,null,0,342]
[null,null,null,null,null,null,null,null,null,null,0,343]
[null,null,null,null,null,null,null,null,null,null,0,344]
[null,null,null,null,null,null,null,null,null,null,0,345]
[null,null,null,null,null,null,null,null,null,null,0,346]
[null,null,null,null,null,null,null,null,null,null,0,347]
[null,null,null,null,null,null,null,null,null,null,0,348]
[null,null,null,null,null,null,null,null,null,null,0,349]
[null,null,null,null,null,null,null,null,null,null,0,350]
[null,null,null,null,null,null,null,null,null,null,0,351]
[null,null,null,null,null,null,null,null,null,null,0,352]
[null,null,null,null,null,null,null,null,null,null,0,353]
[null,null,null,null,null,null,null,null,null,null,0,354]
[null,null,null,null,null,null,null,null,null,null,0,355]
[null,null,null,null,null,null,null,null,null,null,0,356]
[null,null,null,null,null,null,null,null,null,null,0,357]
[null,null,null,null,null,null,null,null,null,null,0,358]
[null,null,null,null,null,null,null,null,null,null,0,359]
[null,null,null,null,null,null,null,null,null,null,0,360]
[null,null,null,null,null,null,null,null,null,null,0,361]
[null,null,null,null,null,null,null,null,null,null,0,362]
[null,null,null,null,null,null,null,null,null,null,0,363]
[null,null,null,null,null,null,null,null,null,null,0,364]
[null,null,null,null,null,null,null,null,null,null,0,365]
[null,null,null,null,null,null,null,null,null,null,0,366]
[null,null,null,null,null,null,null,null,null,null,0,367]
[null,null,null,null,null,null,null,null,null,null,0,368]
[null,null,null,null,null,null,null,null,null,null,0,369]
[null,null,null,null,null,null,null,null,null,null,0,370]
[null,null,null,null,null,null,null,null,null,null,0,371]
[null,null,null,null,null,null,null,null,null,null,0,372]
[null,null,null,null,null,null,null,null,null,null,0,373]
[null,null,null,null,null,null,null,null,null,null,0,374]
[null,null,null,null,null,null,null,null,null,null,0,375]
[null,null,null,null,null,null,null,null,null,null,0,376]
[null,null,null,null,null,null,null,null,null,null,0,377]
[null,null,null,null,null,null,null,null,null,null,0,378]
[null,null,null,null,null,null,null,null,null,null,0,379]
[null,null,null,null,null,null,null,null,null,null,0,380]
[null,null,null,null,null,null,null,null,null,null,0,381]
[null,null,null,null,null,null,null,null,null,null,0,382]
[null,null,null,null,null,null,null,null,null,null,0,383]
[null,null,null,null,null,null,null,null,null,null,0,384]
[null,null,null,null,null,null,null,null,null,null,0,385]
[null,null,null,null,null,null,null,null,null,null,{"$f":"IF(AND(I391=0,J391=0),0,K390+I391-J391)","v":0},386]
[null,null,null,null,null,null,null,null,null,null,0,387]
[null,null,null,null,null,null,null,null,null,null,0,388]
[null,null,null,null,null,null,null,null,null,null,0,389]
[null,null,null,null,null,null,null,null,null,null,0,390]
[null,null,null,null,null,null,null,null,null,null,0,391]
[null,null,null,null,null,null,null,null,null,null,0,392]
[null,null,null,null,null,null,null,null,null,null,0,393]
[null,null,null,null,null,null,null,null,null,null,0,394]
[null,null,null,null,null,null,null,null,null,null,0,395]
[null,null,null,null,null,null,null,null,null,null,0,396]
[null,null,null,null,null,null,null,null,null,null,0,397]
[null,null,null,null,null,null,null,null,null,null,0,398]
[null,null,null,null,null,null,null,null,null,null,0,399]
[null,null,null,null,null,null,null,null,null,null,0,400]
[null,null,null,null,null,null,null,null,null,null,0,401]
[null,null,null,null,null,null,null,null,null,null,0,402]
[null,null,null,null,null,null,null,null,null,null,0,403]
[null,null,null,null,null,null,null,null,null,null,0,404]
[null,null,null,null,null,null,null,null,null,null,0,405]
[null,null,null,null,null,null,null,null,null,null,0,406]
[null,null,null,null,null,null,null,null,null,null,0,407]
[null,null,null,null,null,null,null,null,null,null,0,408]
[null,null,null,null,null,null,null,null,null,null,0,409]
[null,null,null,null,null,null,null,null,null,null,0,410]
[null,null,null,null,null,null,null,null,null,null,0,411]
[null,null,null,null,null,null,null,null,null,null,0,412]
[null,null,null,null,null,null,null,null,null,null,0,413]
[null,null,null,null,null,null,null,null,null,null,0,414]
[null,null,null,null,null,null,null,null,null,null,0,415]
[null,null,null,null,null,null,null,null,null,null,0,416]
[null,null,null,null,null,null,null,null,null,null,0,417]
[null,null,null,null,null,null,null,null,null,null,0,418]
[null,null,null,null,null,null,null,null,null,null,0,419]
[null,null,null,null,null,null,null,null,null,null,0,420]
[null,null,null,null,null,null,null,null,null,null,0,421]
[null,null,null,null,null,null,null,null,null,null,0,422]
[null,null,null,null,null,null,null,null,null,null,0,423]
[null,null,null,null,null,null,null,null,null,null,0,424]
[null,null,null,null,null,null,null,null,null,null,0,425]
[null,null,null,null,null,null,null,null,null,null,0,426]
[null,null,null,null,null,null,null,null,null,null,0,427]
[null,null,null,null,null,null,null,null,null,null,0,428]
[null,null,null,null,null,null,null,null,null,null,0,429]
[null,null,null,null,null,null,null,null,null,null,0,430]
[null,null,null,null,null,null,null,null,null,null,0,431]
[null,null,null,null,null,null,null,null,null,null,0,432]
[null,null,null,null,null,null,null,null,null,null,0,433]
[null,null,null,null,null,null,null,null,null,null,0,434]
[null,null,null,null,null,null,null,null,null,null,0,435]
[null,null,null,null,null,null,null,null,null,null,0,436]
[null,null,null,null,null,null,null,null,null,null,0,437]
[null,null,null,null,null,null,null,null,null,null,0,438]
[null,null,null,null,null,null,null,null,null,null,0,439]
[null,null,null,null,null,null,null,null,null,null,0,440]
[null,null,null,null,null,null,null,null,null,null,0,441]
[null,null,null,null,null,null,null,null,null,null,0,442]
[null,null,null,null,null,null,null,null,null,null,0,443]
[null,null,null,null,null,null,null,null,null,null,0,444]
[null,null,null,null,null,null,null,null,null,null,0,445]
[null,null,null,null,null,null,null,null,null,null,0,446]
[null,null,null,null,null,null,null,null,null,null,0,447]
[null,null,null,null,null,null,null,null,null,null,0,448]
[null,null,null,null,null,null,null,null,null,null,0,449]
[null,null,null,null,null,null,null,null,null,null,{"$f":"IF(AND(I455=0,J455=0),0,K454+I455-J455)","v":0},450]
[null,null,null,null,null,null,null,null,null,null,0,451]
[null,null,null,null,null,null,null,null,null,null,0,452]
[null,null,null,null,null,null,null,null,null,null,0,453]
[null,null,null,null,null,null,null,null,null,null,0,454]
[null,null,null,null,null,null,null,null,null,null,0,455]
[null,null,null,null,null,null,null,null,null,null,0,456]
[null,null,null,null,null,null,null,null,null,null,0,457]
[null,null,null,null,null,null,null,null,null,null,0,458]
[null,null,null,null,null,null,null,null,null,null,0,459]
[null,null,null,null,null,null,null,null,null,null,0,460]
[null,null,null,null,null,null,null,null,null,null,0,461]
[null,null,null,null,null,null,null,null,null,null,0,462]
[null,null,null,null,null,null,null,null,null,null,0,463]
[null,null,null,null,null,null,null,null,null,null,0,464]
[null,null,null,null,null,null,null,null,null,null,0,465]
[null,null,null,null,null,null,null,null,null,null,0,466]
[null,null,null,null,null,null,null,null,null,null,0,467]
[null,null,null,null,null,null,null,null,null,null,0,468]
[null,null,null,null,null,null,null,null,null,null,0,469]
[null,null,null,null,null,null,null,null,null,null,0,470]
[null,null,null,null,null,null,null,null,null,null,0,471]
[null,null,null,null,null,null,null,null,null,null,0,472]
[null,null,null,null,null,null,null,null,null,null,0,473]
[null,null,null,null,null,null,null,null,null,null,0,474]
[null,null,null,null,null,null,null,null,null,null,0,475]
[null,null,null,null,null,null,null,null,null,null,0,476]
[null,null,null,null,null,null,null,null,null,null,0,477]
[null,null,null,null,null,null,null,null,null,null,0,478]
[null,null,null,null,null,null,null,null,null,null,0,479]
[null,null,null,null,null,null,null,null,null,null,0,480]
[null,null,null,null,null,null,null,null,null,null,0,481]
[null,null,null,null,null,null,null,null,null,null,0,482]
[null,null,null,null,null,null,null,null,null,null,0,483]
[null,null,null,null,null,null,null,null,null,null,0,484]
[null,null,null,null,null,null,null,null,null,null,0,485]
[null,null,null,null,null,null,null,null,null,null,0,486]
[null,null,null,null,null,null,null,null,null,null,0,487]
[null,null,null,null,null,null,null,null,null,null,0,488]
[null,null,null,null,null,null,null,null,null,null,0,489]
[null,null,null,null,null,null,null,null,null,null,0,490]
[null,null,null,null,null,null,null,null,null,null,0,491]
[null,null,null,null,null,null,null,null,null,null,0,492]
[null,null,null,null,null,null,null,null,null,null,0,493]
[null,null,null,null,null,null,null,null,null,null,0,494]
[null,null,null,null,null,null,null,null,null,null,0,495]
[null,null,null,null,null,null,null,null,null,null,0,496]
[null,null,null,null,null,null,null,null,null,null,0,497]
[null,null,null,null,null,null,null,null,null,null,0,498]
[null,null,null,null,null,null,null,null,null,null,0,499]
[null,null,null,null,null,null,null,null,null,null,0,500]
[null,null,null,null,null,null,null,null,null,null,0,501]
[null,null,null,null,null,null,null,null,null,null,0,502]
[null,null,null,null,null,null,null,null,null,null,0,503]
[null,null,null,null,null,null,null,null,null,null,0,504]
[null,null,null,null,null,null,null,null,null,null,0,505]
[null,null,null,null,null,null,null,null,null,null,0,506]
[null,null,null,null,null,null,null,null,null,null,0,507]
[null,null,null,null,null,null,null,null,null,null,0,508]
[null,null,null,null,null,null,null,null,null,null,0,509]
[null,null,null,null,null,null,null,null,null,null,0,510]
[null,null,null,null,null,null,null,null,null,null,0,511]
[null,null,null,null,null,null,null,null,null,null,0,512]
[null,null,null,null,null,null,null,null,null,null,0,513]
[null,null,null,null,null,null,null,null,null,null,{"$f":"IF(AND(I519=0,J519=0),0,K518+I519-J519)","v":0},514]
[null,null,null,null,null,null,null,null,null,null,0,515]
[null,null,null,null,null,null,null,null,null,null,0,516]
[null,null,null,null,null,null,null,null,null,null,0,517]
[null,null,null,null,null,null,null,null,null,null,0,518]
[null,null,null,null,null,null,null,null,null,null,0,519]
[null,null,null,null,null,null,null,null,null,null,0,520]
[null,null,null,null,null,null,null,null,null,null,0,521]
[null,null,null,null,null,null,null,null,null,null,0,522]
[null,null,null,null,null,null,null,null,null,null,0,523]
[null,null,null,null,null,null,null,null,null,null,0,524]
[null,null,null,null,null,null,null,null,null,null,0,525]
[null,null,null,null,null,null,null,null,null,null,0,526]
[null,null,null,null,null,null,null,null,null,null,0,527]
[null,null,null,null,null,null,null,null,null,null,0,528]
[null,null,null,null,null,null,null,null,null,null,0,529]
[null,null,null,null,null,null,null,null,null,null,0,530]
[null,null,null,null,null,null,null,null,null,null,0,531]
[null,null,null,null,null,null,null,null,null,null,0,532]
[null,null,null,null,null,null,null,null,null,null,0,533]
[null,null,null,null,null,null,null,null,null,null,0,534]
[null,null,null,null,null,null,null,null,null,null,0,535]
[null,null,null,null,null,null,null,null,null,null,0,536]
[null,null,null,null,null,null,null,null,null,null,0,537]
[null,null,null,null,null,null,null,null,null,null,0,538]
[null,null,null,null,null,null,null,null,null,null,0,539]
[null,null,null,null,null,null,null,null,null,null,0,540]
[null,null,null,null,null,null,null,null,null,null,0,541]
[null,null,null,null,null,null,null,null,null,null,0,542]
[null,null,null,null,null,null,null,null,null,null,0,543]
[null,null,null,null,null,null,null,null,null,null,0,544]
[null,null,null,null,null,null,null,null,null,null,0,545]
[null,null,null,null,null,null,null,null,null,null,0,546]
[null,null,null,null,null,null,null,null,null,null,0,547]
[null,null,null,null,null,null,null,null,null,null,0,548]
[null,null,null,null,null,null,null,null,null,null,0,549]
[null,null,null,null,null,null,null,null,null,null,0,550]
[null,null,null,null,null,null,null,null,null,null,0,551]
[null,null,null,null,null,null,null,null,null,null,0,552]
[null,null,null,null,null,null,null,null,null,null,0,553]
[null,null,null,null,null,null,null,null,null,null,0,554]
[null,null,null,null,null,null,null,null,null,null,0,555]
[null,null,null,null,null,null,null,null,null,null,0,556]
[null,null,null,null,null,null,null,null,null,null,0,557]
[null,null,null,null,null,null,null,null,null,null,0,558]
[null,null,null,null,null,null,null,null,null,null,0,559]
[null,null,null,null,null,null,null,null,null,null,0,560]
[null,null,null,null,null,null,null,null,null,null,0,561]
[null,null,null,null,null,null,null,null,null,null,0,562]
[null,null,null,null,null,null,null,null,null,null,0,563]
[null,null,null,null,null,null,null,null,null,null,0]
[null,null,null,null,null,null,null,null,null,null,0]

{"sheet":"PC Jan","index":1,"n_rows":568,"n_cols":12,"rows_kept":568,"cut":false,"hidden":false,"merged":[[0,9,0,10],[1,9,1,10]]}
[null,"Firma:",null,"Firma",null,null,null,null,"Monat:","Januar 2022"]
[null,"Konto:",null,"Bezeichnung",null,null,null,null,"Nummer:",1010]
[null,null,null,"CH52 0900 0000 6049 0042 5",null,null,null,null,{"$f":"SUBTOTAL(9,I6:I568)","v":0},{"$f":"SUBTOTAL(9,J6:J568)","v":0}]
[null,"Tag","Zahlung von / an",null,"Wofür?","Beleg","Konto","MWST","Einnahmen","Ausgaben","Saldo"]
[null,"(TT.MM)",null,null,null,null,null,null,"CHF","CHF",0]
[null,null,null,null,null,null,null,null,null,null,{"$f":"IF(AND(I6=0,J6=0),0,K5+I6-J6)","v":0},1]
[null,null,null,null,null,null,null,null,null,null,0,2]
[null,null,null,null,null,null,null,null,null,null,0,3]
[null,null,null,null,null,null,null,null,null,null,0,4]
[null,null,null,null,null,null,null,null,null,null,0,5]
[null,null,null,null,null,null,null,null,null,null,0,6]
[null,null,null,null,null,null,null,null,null,null,0,7]
[null,null,null,null,null,null,null,null,null,null,0,8]
[null,null,null,null,null,null,null,null,null,null,0,9]
[null,null,null,null,null,null,null,null,null,null,0,10]
[null,null,null,null,null,null,null,null,null,null,0,11]
[null,null,null,null,null,null,null,null,null,null,0,12]
[null,null,null,null,null,null,null,null,null,null,0,13]
[null,null,null,null,null,null,null,null,null,null,0,14]
[null,null,null,null,null,null,null,null,null,null,0,15]
[null,null,null,null,null,null,null,null,null,null,0,16]
[null,null,null,null,null,null,null,null,null,null,0,17]
[null,null,null,null,null,null,null,null,null,null,0,18]
[null,null,null,null,null,null,null,null,null,null,0,19]
[null,null,null,null,null,null,null,null,null,null,0,20]
[null,null,null,null,null,null,null,null,null,null,0,21]
[null,null,null,null,null,null,null,null,null,null,0,22]
[null,null,null,null,null,null,null,null,null,null,0,23]
[null,null,null,null,null,null,null,null,null,null,0,24]
[null,null,null,null,null,null,null,null,null,null,0,25]
[null,null,null,null,null,null,null,null,null,null,0,26]
[null,null,null,null,null,null,null,null,null,null,0,27]
[null,null,null,null,null,null,null,null,null,null,0,28]
[null,null,null,null,null,null,null,null,null,null,0,29]
[null,null,null,null,null,null,null,null,null,null,0,30]
[null,null,null,null,null,null,null,null,null,null,0,31]
[null,null,null,null,null,null,null,null,null,null,0,32]
[null,null,null,null,null,null,null,null,null,null,0,33]
[null,null,null,null,null,null,null,null,null,null,0,34]
[null,null,null,null,null,null,null,null,null,null,0,35]
[null,null,null,null,null,null,null,null,null,null,{"$f":"IF(AND(I41=0,J41=0),0,K40+I41-J41)","v":0},36]
[null,null,null,null,null,null,null,null,null,null,0,37]
[null,null,null,null,null,null,null,null,null,null,0,38]
[null,null,null,null,null,null,null,null,null,null,0,39]
[null,null,null,null,null,null,null,null,null,null,0,40]
[null,null,null,null,null,null,null,null,null,null,0,41]
[null,null,null,null,null,null,null,null,null,null,0,42]
[null,null,null,null,null,null,null,null,null,null,0,43]
[null,null,null,null,null,null,null,null,null,null,0,44]
[null,null,null,null,null,null,null,null,null,null,0,45]
[null,null,null,null,null,null,null,null,null,null,0,46]
[null,null,null,null,null,null,null,null,null,null,0,47]
[null,null,null,null,null,null,null,null,null,null,0,48]
[null,null,null,null,null,null,null,null,null,null,0,49]
[null,null,null,null,null,null,null,null,null,null,0,50]
[null,null,null,null,null,null,null,null,null,null,0,51]
[null,null,null,null,null,null,null,null,null,null,0,52]
[null,null,null,null,null,null,null,null,null,null,0,53]
[null,null,null,null,null,null,null,null,null,null,0,54]
[null,null,null,null,null,null,null,null,null,null,0,55]
[null,null,null,null,null,null,null,null,null,null,0,56]
[null,null,null,null,null,null,null,null,null,null,0,57]
[null,null,null,null,null,null,null,null,null,null,0,58]
[null,null,null,null,null,null,null,null,null,null,0,59]
[null,null,null,null,null,null,null,null,null,null,0,60]
[null,null,null,null,null,null,null,null,null,null,0,61]
[null,null,null,null,null,null,null,null,null,null,0,62]
[null,null,null,null,null,null,null,null,null,null,0,63]
[null,null,null,null,null,null,null,null,null,null,0,64]
[null,null,null,null,null,null,null,null,null,null,{"$f":"IF(AND(I70=0,J70=0),0,K69+I70-J70)","v":0},65]
[null,null,null,null,null,null,null,null,null,null,0,66]
[null,null,null,null,null,null,null,null,null,null,0,67]
[null,null,null,null,null,null,null,null,null,null,0,68]
[null,null,null,null,null,null,null,null,null,null,0,69]
[null,null,null,null,null,null,null,null,null,null,0,70]
[null,null,null,null,null,null,null,null,null,null,{"$f":"IF(AND(I76=0,J76=0),0,K75+I76-J76)","v":0},71]
[null,null,null,null,null,null,null,null,null,null,0,72]
[null,null,null,null,null,null,null,null,null,null,0,73]
[null,null,null,null,null,null,null,null,null,null,0,74]
[null,null,null,null,null,null,null,null,null,null,0,75]
[null,null,null,null,null,null,null,null,null,null,0,76]
[null,null,null,null,null,null,null,null,null,null,0,77]
[null,null,null,null,null,null,null,null,null,null,0,78]
[null,null,null,null,null,null,null,null,null,null,0,79]
[null,null,null,null,null,null,null,null,null,null,0,80]
[null,null,null,null,null,null,null,null,null,null,0,81]
[null,null,null,null,null,null,null,null,null,null,0,82]
[null,null,null,null,null,null,null,null,null,null,0,83]
[null,null,null,null,null,null,null,null,null,null,0,84]
[null,null,null,null,null,null,null,null,null,null,0,85]
[null,null,null,null,null,null,null,null,null,null,0,86]
[null,null,null,null,null,null,null,null,null,null,0,87]
[null,null,null,null,null,null,null,null,null,null,0,88]
[null,null,null,null,null,null,null,null,null,null,0,89]
[null,null,null,null,null,null,null,null,null,null,0,90]
[null,null,null,null,null,null,null,null,null,null,0,91]
[null,null,null,null,null,null,null,null,null,null,0,92]
[null,null,null,null,null,null,null,null,null,null,0,93]
[null,null,null,null,null,null,null,null,null,null,0,94]
[null,null,null,null,null,null,null,null,null,null,0,95]
[null,null,null,null,null,null,null,null,null,null,0,96]
[null,null,null,null,null,null,null,null,null,null,0,97]
[null,null,null,null,null,null,null,null,null,null,0,98]
[null,null,null,null,null,null,null,null,null,null,0,99]
[null,null,null,null,null,null,null,null,null,null,0,100]
[null,null,null,null,null,null,null,null,null,null,0,101]
[null,null,null,null,null,null,null,null,null,null,0,102]
[null,null,null,null,null,null,null,null,null,null,0,103]
[null,null,null,null,null,null,null,null,null,null,0,104]
[null,null,null,null,null,null,null,null,null,null,0,105]
[null,null,null,null,null,null,null,null,null,null,{"$f":"IF(AND(I111=0,J111=0),0,K110+I111-J111)","v":0},106]
[null,null,null,null,null,null,null,null,null,null,0,107]
[null,null,null,null,null,null,null,null,null,null,0,108]
[null,null,null,null,null,null,null,null,null,null,0,109]
[null,null,null,null,null,null,null,null,null,null,0,110]
[null,null,null,null,null,null,null,null,null,null,0,111]
[null,null,null,null,null,null,null,null,null,null,0,112]
[null,null,null,null,null,null,null,null,null,null,0,113]
[null,null,null,null,null,null,null,null,null,null,0,114]
[null,null,null,null,null,null,null,null,null,null,0,115]
[null,null,null,null,null,null,null,null,null,null,0,116]
[null,null,null,null,null,null,null,null,null,null,0,117]
[null,null,null,null,null,null,null,null,null,null,0,118]
[null,null,null,null,null,null,null,null,null,null,0,119]
[null,null,null,null,null,null,null,null,null,null,0,120]
[null,null,null,null,null,null,null,null,null,null,0,121]
[null,null,null,null,null,null,null,null,null,null,0,122]
[null,null,null,null,null,null,null,null,null,null,0,123]
[null,null,null,null,null,null,null,null,null,null,0,124]
[null,null,null,null,null,null,null,null,null,null,0,125]
[null,null,null,null,null,null,null,null,null,null,0,126]
[null,null,null,null,null,null,null,null,null,null,0,127]
[null,null,null,null,null,null,null,null,null,null,0,128]
[null,null,null,null,null,null,null,null,null,null,{"$f":"IF(AND(I134=0,J134=0),0,K133+I134-J134)","v":0},129]
[null,null,null,null,null,null,null,null,null,null,0,130]
[null,null,null,null,null,null,null,null,null,null,0,131]
[null,null,null,null,null,null,null,null,null,null,0,132]
[null,null,null,null,null,null,null,null,null,null,0,133]
[null,null,null,null,null,null,null,null,null,null,0,134]
[null,null,null,null,null,null,null,null,null,null,0,135]
[null,null,null,null,null,null,null,null,null,null,0,136]
[null,null,null,null,null,null,null,null,null,null,0,137]
[null,null,null,null,null,null,null,null,null,null,0,138]
[null,null,null,null,null,null,null,null,null,null,0,139]
[null,null,null,null,null,null,null,null,null,null,0,140]
[null,null,null,null,null,null,null,null,null,null,{"$f":"IF(AND(I146=0,J146=0),0,K145+I146-J146)","v":0},141]
[null,null,null,null,null,null,null,null,null,null,0,142]
[null,null,null,null,null,null,null,null,null,null,0,143]
[null,null,null,null,null,null,null,null,null,null,0,144]
[null,null,null,null,null,null,null,null,null,null,0,145]
[null,null,null,null,null,null,null,null,null,null,0,146]
[null,null,null,null,null,null,null,null,null,null,0,147]
[null,null,null,null,null,null,null,null,null,null,0,148]
[null,null,null,null,null,null,null,null,null,null,0,149]
[null,null,null,null,null,null,null,null,null,null,0,150]
[null,null,null,null,null,null,null,null,null,null,0,151]
[null,null,null,null,null,null,null,null,null,null,0,152]
[null,null,null,null,null,null,null,null,null,null,0,153]
[null,null,null,null,null,null,null,null,null,null,0,154]
[null,null,null,null,null,null,null,null,null,null,0,155]
[null,null,null,null,null,null,null,null,null,null,0,156]
[null,null,null,null,null,null,null,null,null,null,0,157]
[null,null,null,null,null,null,null,null,null,null,0,158]
[null,null,null,null,null,null,null,null,null,null,0,159]
[null,null,null,null,null,null,null,null,null,null,0,160]
[null,null,null,null,null,null,null,null,null,null,0,161]
[null,null,null,null,null,null,null,null,null,null,0,162]
[null,null,null,null,null,null,null,null,null,null,0,163]
[null,null,null,null,null,null,null,null,null,null,0,164]
[null,null,null,null,null,null,null,null,null,null,0,165]
[null,null,null,null,null,null,null,null,null,null,0,166]
[null,null,null,null,null,null,null,null,null,null,0,167]
[null,null,null,null,null,null,null,null,null,null,0,168]
[null,null,null,null,null,null,null,null,null,null,0,169]
[null,null,null,null,null,null,null,null,null,null,0,170]
[null,null,null,null,null,null,null,null,null,null,0,171]
[null,null,null,null,null,null,null,null,null,null,0,172]
[null,null,null,null,null,null,null,null,null,null,0,173]
[null,null,null,null,null,null,null,null,null,null,0,174]
[null,null,null,null,null,null,null,null,null,null,0,175]
[null,null,null,null,null,null,null,null,null,null,{"$f":"IF(AND(I181=0,J181=0),0,K180+I181-J181)","v":0},176]
[null,null,null,null,null,null,null,null,null,null,0,177]
[null,null,null,null,null,null,null,null,null,null,0,178]
[null,null,null,null,null,null,null,null,null,null,0,179]
[null,null,null,null,null,null,null,null,null,null,0,180]
[null,null,null,null,null,null,null,null,null,null,0,181]
[null,null,null,null,null,null,null,null,null,null,0,182]
[null,null,null,null,null,null,null,null,null,null,0,183]
[null,null,null,null,null,null,null,null,null,null,0,184]
[null,null,null,null,null,null,null,null,null,null,0,185]
[null,null,null,null,null,null,null,null,null,null,0,186]
[null,null,null,null,null,null,null,null,null,null,0,187]
[null,null,null,null,null,null,null,null,null,null,0,188]
[null,null,null,null,null,null,null,null,null,null,0,189]
[null,null,null,null,null,null,null,null,null,null,0,190]
[null,null,null,null,null,null,null,null,null,null,0,191]
[null,null,null,null,null,null,null,null,null,null,0,192]
[null,null,null,null,null,null,null,null,null,null,{"$f":"IF(AND(I198=0,J198=0),0,K197+I198-J198)","v":0},193]
[null,null,null,null,null,null,null,null,null,null,0,194]
[null,null,null,null,null,null,null,null,null,null,0,195]
[null,null,null,null,null,null,null,null,null,null,0,196]
[null,null,null,null,null,null,null,null,null,null,0,197]
[null,null,null,null,null,null,null,null,null,null,0,198]
[null,null,null,null,null,null,null,null,null,null,0,199]
[null,null,null,null,null,null,null,null,null,null,0,200]
[null,null,null,null,null,null,null,null,null,null,0,201]
[null,null,null,null,null,null,null,null,null,null,0,202]
[null,null,null,null,null,null,null,null,null,null,0,203]
[null,null,null,null,null,null,null,null,null,null,0,204]
[null,null,null,null,null,null,null,null,null,null,0,205]
[null,null,null,null,null,null,null,null,null,null,0,206]
[null,null,null,null,null,null,null,null,null,null,0,207]
[null,null,null,null,null,null,null,null,null,null,0,208]
[null,null,null,null,null,null,null,null,null,null,0,209]
[null,null,null,null,null,null,null,null,null,null,0,210]
[null,null,null,null,null,null,null,null,null,null,{"$f":"IF(AND(I216=0,J216=0),0,K215+I216-J216)","v":0},211]
[null,null,null,null,null,null,null,null,null,null,0,212]
[null,null,null,null,null,null,null,null,null,null,0,213]
[null,null,null,null,null,null,null,null,null,null,0,214]
[null,null,null,null,null,null,null,null,null,null,0,215]
[null,null,null,null,null,null,null,null,null,null,0,216]
[null,null,null,null,null,null,null,null,null,null,0,217]
[null,null,null,null,null,null,null,null,null,null,0,218]
[null,null,null,null,null,null,null,null,null,null,0,219]
[null,null,null,null,null,null,null,null,null,null,0,220]
[null,null,null,null,null,null,null,null,null,null,0,221]
[null,null,null,null,null,null,null,null,null,null,0,222]
[null,null,null,null,null,null,null,null,null,null,0,223]
[null,null,null,null,null,null,null,null,null,null,0,224]
[null,null,null,null,null,null,null,null,null,null,0,225]
[null,null,null,null,null,null,null,null,null,null,0,226]
[null,null,null,null,null,null,null,null,null,null,0,227]
[null,null,null,null,null,null,null,null,null,null,0,228]
[null,null,null,null,null,null,null,null,null,null,0,229]
[null,null,null,null,null,null,null,null,null,null,0,230]
[null,null,null,null,null,null,null,null,null,null,0,231]
[null,null,null,null,null,null,null,null,null,null,0,232]
[null,null,null,null,null,null,null,null,null,null,0,233]
[null,null,null,null,null,null,null,null,null,null,0,234]
[null,null,null,null,null,null,null,null,null,null,0,235]
[null,null,null,null,null,null,null,null,null,null,0,236]
[null,null,null,null,null,null,null,null,null,null,0,237]
[null,null,null,null,null,null,null,null,null,null,0,238]
[null,null,null,null,null,null,null,null,null,null,0,239]
[null,null,null,null,null,null,null,null,null,null,0,240]
[null,null,null,null,null,null,null,null,null,null,0,241]
[null,null,null,null,null,null,null,null,null,null,0,242]
[null,null,null,null,null,null,null,null,null,null,0,243]
[null,null,null,null,null,null,null,null,null,null,0,244]
[null,null,null,null,null,null,null,null,null,null,0,245]
[null,null,null,null,null,null,null,null,null,null,{"$f":"IF(AND(I251=0,J251=0),0,K250+I251-J251)","v":0},246]
[null,null,null,null,null,null,null,null,null,null,0,247]
[null,null,null,null,null,null,null,null,null,null,0,248]
[null,null,null,null,null,null,null,null,null,null,0,249]
[null,null,null,null,null,null,null,null,null,null,0,250]
[null,null,null,null,null,null,null,null,null,null,0,251]
[null,null,null,null,null,null,null,null,null,null,0,252]
[null,null,null,null,null,null,null,null,null,null,0,253]
[null,null,null,null,null,null,null,null,null,null,0,254]
[null,null,null,null,null,null,null,null,null,null,0,255]
[null,null,null,null,null,null,null,null,null,null,0,256]
[null,null,null,null,null,null,null,null,null,null,{"$f":"IF(AND(I262=0,J262=0),0,K261+I262-J262)","v":0},257]
[null,null,null,null,null,null,null,null,null,null,0,258]
[null,null,null,null,null,null,null,null,null,null,0,259]
[null,null,null,null,null,null,null,null,null,null,0,260]
[null,null,null,null,null,null,null,null,null,null,0,261]
[null,null,null,null,null,null,null,null,null,null,0,262]
[null,null,null,null,null,null,null,null,null,null,0,263]
[null,null,null,null,null,null,null,null,null,null,0,264]
[null,null,null,null,null,null,null,null,null,null,0,265]
[null,null,null,null,null,null,null,null,null,null,0,266]
[null,null,null,null,null,null,null,null,null,null,0,267]
[null,null,null,null,null,null,null,null,null,null,0,268]
[null,null,null,null,null,null,null,null,null,null,0,269]
[null,null,null,null,null,null,null,null,null,null,0,270]
[null,null,null,null,null,null,null,null,null,null,0,271]
[null,null,null,null,null,null,null,null,null,null,0,272]
[null,null,null,null,null,null,null,null,null,null,0,273]
[null,null,null,null,null,null,null,null,null,null,0,274]
[null,null,null,null,null,null,null,null,null,null,0,275]
[null,null,null,null,null,null,null,null,null,null,0,276]
[null,null,null,null,null,null,null,null,null,null,0,277]
[null,null,null,null,null,null,null,null,null,null,0,278]
[null,null,null,null,null,null,null,null,null,null,0,279]
[null,null,null,null,null,null,null,null,null,null,0,280]
[null,null,null,null,null,null,null,null,null,null,{"$f":"IF(AND(I286=0,J286=0),0,K285+I286-J286)","v":0},281]
[null,null,null,null,null,null,null,null,null,null,0,282]
[null,null,null,null,null,null,null,null,null,null,0,283]
[null,null,null,null,null,null,null,null,null,null,0,284]
[null,null,null,null,null,null,null,null,null,null,0,285]
[null,null,null,null,null,null,null,null,null,null,0,286]
[null,null,null,null,null,null,null,null,null,null,0,287]
[null,null,null,null,null,null,null,null,null,null,0,288]
[null,null,null,null,null,null,null,null,null,null,0,289]
[null,null,null,null,null,null,null,null,null,null,0,290]
[null,null,null,null,null,null,null,null,null,null,0,291]
[null,null,null,null,null,null,null,null,null,null,0,292]
[null,null,null,null,null,null,null,null,null,null,0,293]
[null,null,null,null,null,null,null,null,null,null,0,294]
[null,null,null,null,null,null,null,null,null,null,0,295]
[null,null,null,null,null,null,null,null,null,null,0,296]
[null,null,null,null,null,null,null,null,null,null,0,297]
[null,null,null,null,null,null,null,null,null,null,0,298]
[null,null,null,null,null,null,null,null,null,null,0,299]
[null,null,null,null,null,null,null,null,null,null,0,300]
[null,null,null,null,null,null,null,null,null,null,0,301]
[null,null,null,null,null,null,null,null,null,null,0,302]
[null,null,null,null,null,null,null,null,null,null,0,303]
[null,null,null,null,null,null,null,null,null,null,0,304]
[null,null,null,null,null,null,null,null,null,null,0,305]
[null,null,null,null,null,null,null,null,null,null,0,306]
[null,null,null,null,null,null,null,null,null,null,0,307]
[null,null,null,null,null,null,null,null,null,null,0,308]
[null,null,null,null,null,null,null,null,null,null,0,309]
[null,null,null,null,null,null,null,null,null,null,0,310]
[null,null,null,null,null,null,null,null,null,null,0,311]
[null,null,null,null,null,null,null,null,null,null,0,312]
[null,null,null,null,null,null,null,null,null,null,0,313]
[null,null,null,null,null,null,null,null,null,null,0,314]
[null,null,null,null,null,null,null,null,null,null,0,315]
[null,null,null,null,null,null,null,null,null,null,{"$f":"IF(AND(I321=0,J321=0),0,K320+I321-J321)","v":0},316]
[null,null,null,null,null,null,null,null,null,null,0,317]
[null,null,null,null,null,null,null,null,null,null,0,318]
[null,null,null,null,null,null,null,null,null,null,0,319]
[null,null,null,null,null,null,null,null,null,null,0,320]
[null,null,null,null,null,null,null,null,null,null,{"$f":"IF(AND(I326=0,J326=0),0,K325+I326-J326)","v":0},321]
[null,null,null,null,null,null,null,null,null,null,0,322]
[null,null,null,null,null,null,null,null,null,null,0,323]
[null,null,null,null,null,null,null,null,null,null,0,324]
[null,null,null,null,null,null,null,null,null,null,0,325]
[null,null,null,null,null,null,null,null,null,null,0,326]
[null,null,null,null,null,null,null,null,null,null,0,327]
[null,null,null,null,null,null,null,null,null,null,0,328]
[null,null,null,null,null,null,null,null,null,null,0,329]
[null,null,null,null,null,null,null,null,null,null,0,330]
[null,null,null,null,null,null,null,null,null,null,0,331]
[null,null,null,null,null,null,null,null,null,null,0,332]
[null,null,null,null,null,null,null,null,null,null,0,333]
[null,null,null,null,null,null,null,null,null,null,0,334]
[null,null,null,null,null,null,null,null,null,null,0,335]
[null,null,null,null,null,null,null,null,null,null,0,336]
[null,null,null,null,null,null,null,null,null,null,0,337]
[null,null,null,null,null,null,null,null,null,null,0,338]
[null,null,null,null,null,null,null,null,null,null,0,339]
[null,null,null,null,null,null,null,null,null,null,0,340]
[null,null,null,null,null,null,null,null,null,null,0,341]
[null,null,null,null,null,null,null,null,null,null,0,342]
[null,null,null,null,null,null,null,null,null,null,0,343]
[null,null,null,null,null,null,null,null,null,null,0,344]
[null,null,null,null,null,null,null,null,null,null,0,345]
[null,null,null,null,null,null,null,null,null,null,0,346]
[null,null,null,null,null,null,null,null,null,null,0,347]
[null,null,null,null,null,null,null,null,null,null,0,348]
[null,null,null,null,null,null,null,null,null,null,0,349]
[null,null,null,null,null,null,null,null,null,null,0,350]
[null,null,null,null,null,null,null,null,null,null,{"$f":"IF(AND(I356=0,J356=0),0,K355+I356-J356)","v":0},351]
[null,null,null,null,null,null,null,null,null,null,0,352]
[null,null,null,null,null,null,null,null,null,null,0,353]
[null,null,null,null,null,null,null,null,null,null,0,354]
[null,null,null,null,null,null,null,null,null,null,0,355]
[null,null,null,null,null,null,null,null,null,null,0,356]
[null,null,null,null,null,null,null,null,null,null,0,357]
[null,null,null,null,null,null,null,null,null,null,0,358]
[null,null,null,null,null,null,null,null,null,null,0,359]
[null,null,null,null,null,null,null,null,null,null,0,360]
[null,null,null,null,null,null,null,null,null,null,0,361]
[null,null,null,null,null,null,null,null,null,null,0,362]
[null,null,null,null,null,null,null,null,null,null,0,363]
[null,null,null,null,null,null,null,null,null,null,0,364]
[null,null,null,null,null,null,null,null,null,null,0,365]
[null,null,null,null,null,null,null,null,null,null,0,366]
[null,null,null,null,null,null,null,null,null,null,0,367]
[null,null,null,null,null,null,null,null,null,null,0,368]
[null,null,null,null,null,null,null,null,null,null,0,369]
[null,null,null,null,null,null,null,null,null,null,0,370]
[null,null,null,null,null,null,null,null,null,null,0,371]
[null,null,null,null,null,null,null,null,null,null,0,372]
[null,null,null,null,null,null,null,null,null,null,0,373]
[null,null,null,null,null,null,null,null,null,null,0,374]
[null,null,null,null,null,null,null,null,null,null,0,375]
[null,null,null,null,null,null,null,null,null,null,0,376]
[null,null,null,null,null,null,null,null,null,null,0,377]
[null,null,null,null,null,null,null,null,null,null,0,378]
[null,null,null,null,null,null,null,null,null,null,0,379]
[null,null,null,null,null,null,null,null,null,null,0,380]
[null,null,null,null,null,null,null,null,null,null,0,381]
[null,null,null,null,null,null,null,null,null,null,0,382]
[null,null,null,null,null,null,null,null,null,null,0,383]
[null,null,null,null,null,null,null,null,null,null,0,384]
[null,null,null,null,null,null,null,null,null,null,{"$f":"IF(AND(I390=0,J390=0),0,K389+I390-J390)","v":0},385]
[null,null,null,null,null,null,null,null,null,null,{"$f":"IF(AND(I391=0,J391=0),0,K390+I391-J391)","v":0},386]
[null,null,null,null,null,null,null,null,null,null,0,387]
[null,null,null,null,null,null,null,null,null,null,0,388]
[null,null,null,null,null,null,null,null,null,null,0,389]
[null,null,null,null,null,null,null,null,null,null,0,390]
[null,null,null,null,null,null,null,null,null,null,0,391]
[null,null,null,null,null,null,null,null,null,null,0,392]
[null,null,null,null,null,null,null,null,null,null,0,393]
[null,null,null,null,null,null,null,null,null,null,0,394]
[null,null,null,null,null,null,null,null,null,null,0,395]
[null,null,null,null,null,null,null,null,null,null,0,396]
[null,null,null,null,null,null,null,null,null,null,0,397]
[null,null,null,null,null,null,null,null,null,null,0,398]
[null,null,null,null,null,null,null,null,null,null,0,399]
[null,null,null,null,null,null,null,null,null,null,0,400]
[null,null,null,null,null,null,null,null,null,null,0,401]
[null,null,null,null,null,null,null,null,null,null,0,402]
[null,null,null,null,null,null,null,null,null,null,0,403]
[null,null,null,null,null,null,null,null,null,null,0,404]
[null,null,null,null,null,null,null,null,null,null,0,405]
[null,null,null,null,null,null,null,null,null,null,0,406]
[null,null,null,null,null,null,null,null,null,null,0,407]
[null,null,null,null,null,null,null,null,null,null,0,408]
[null,null,null,null,null,null,null,null,null,null,0,409]
[null,null,null,null,null,null,null,null,null,null,0,410]
[null,null,null,null,null,null,null,null,null,null,0,411]
[null,null,null,null,null,null,null,null,null,null,0,412]
[null,null,null,null,null,null,null,null,null,null,0,413]
[null,null,null,null,null,null,null,null,null,null,0,414]
[null,null,null,null,null,null,null,null,null,null,0,415]
[null,null,null,null,null,null,null,null,null,null,0,416]
[null,null,null,null,null,null,null,null,null,null,0,417]
[null,null,null,null,null,null,null,null,null,null,0,418]
[null,null,null,null,null,null,null,null,null,null,0,419]
[null,null,null,null,null,null,null,null,null,null,0,420]
[null,null,null,null,null,null,null,null,null,null,{"$f":"IF(AND(I426=0,J426=0),0,K425+I426-J426)","v":0},421]
[null,null,null,null,null,null,null,null,null,null,0,422]
[null,null,null,null,null,null,null,null,null,null,0,423]
[null,null,null,null,null,null,null,null,null,null,0,424]
[null,null,null,null,null,null,null,null,null,null,0,425]
[null,null,null,null,null,null,null,null,null,null,0,426]
[null,null,null,null,null,null,null,null,null,null,0,427]
[null,null,null,null,null,null,null,null,null,null,0,428]
[null,null,null,null,null,null,null,null,null,null,0,429]
[null,null,null,null,null,null,null,null,null,null,0,430]
[null,null,null,null,null,null,null,null,null,null,0,431]
[null,null,null,null,null,null,null,null,null,null,0,432]
[null,null,null,null,null,null,null,null,null,null,0,433]
[null,null,null,null,null,null,null,null,null,null,0,434]
[null,null,null,null,null,null,null,null,null,null,0,435]
[null,null,null,null,null,null,null,null,null,null,0,436]
[null,null,null,null,null,null,null,null,null,null,0,437]
[null,null,null,null,null,null,null,null,null,null,0,438]
[null,null,null,null,null,null,null,null,null,null,0,439]
[null,null,null,null,null,null,null,null,null,null,0,440]
[null,null,null,null,null,null,null,null,null,null,0,441]
[null,null,null,null,null,null,null,null,null,null,0,442]
[null,null,null,null,null,null,null,null,null,null,0,443]
[null,null,null,null,null,null,null,null,null,null,0,444]
[null,null,null,null,null,null,null,null,null,null,0,445]
[null,null,null,null,null,null,null,null,null,null,0,446]
[null,null,null,null,null,null,null,null,null,null,0,447]
[null,null,null,null,null,null,null,null,null,null,0,448]
[null,null,null,null,null,null,null,null,null,null,{"$f":"IF(AND(I454=0,J454=0),0,K453+I454-J454)","v":0},449]
[null,null,null,null,null,null,null,null,null,null,0,450]
[null,null,null,null,null,null,null,null,null,null,0,451]
[null,null,null,null,null,null,null,null,null,null,0,452]
[null,null,null,null,null,null,null,null,null,null,0,453]
[null,null,null,null,null,null,null,null,null,null,0,454]
[null,null,null,null,null,null,null,null,null,null,0,455]
[null,null,null,null,null,null,null,null,null,null,{"$f":"IF(AND(I461=0,J461=0),0,K460+I461-J461)","v":0},456]
[null,null,null,null,null,null,null,null,null,null,0,457]
[null,null,null,null,null,null,null,null,null,null,0,458]
[null,null,null,null,null,null,null,null,null,null,0,459]
[null,null,null,null,null,null,null,null,null,null,0,460]
[null,null,null,null,null,null,null,null,null,null,0,461]
[null,null,null,null,null,null,null,null,null,null,0,462]
[null,null,null,null,null,null,null,null,null,null,0,463]
[null,null,null,null,null,null,null,null,null,null,0,464]
[null,null,null,null,null,null,null,null,null,null,0,465]
[null,null,null,null,null,null,null,null,null,null,0,466]
[null,null,null,null,null,null,null,null,null,null,0,467]
[null,null,null,null,null,null,null,null,null,null,0,468]
[null,null,null,null,null,null,null,null,null,null,0,469]
[null,null,null,null,null,null,null,null,null,null,0,470]
[null,null,null,null,null,null,null,null,null,null,0,471]
[null,null,null,null,null,null,null,null,null,null,0,472]
[null,null,null,null,null,null,null,null,null,null,0,473]
[null,null,null,null,null,null,null,null,null,null,0,474]
[null,null,null,null,null,null,null,null,null,null,0,475]
[null,null,null,null,null,null,null,null,null,null,0,476]
[null,null,null,null,null,null,null,null,null,null,0,477]
[null,null,null,null,null,null,null,null,null,null,0,478]
[null,null,null,null,null,null,null,null,null,null,0,479]
[null,null,null,null,null,null,null,null,null,null,0,480]
[null,null,null,null,null,null,null,null,null,null,0,481]
[null,null,null,null,null,null,null,null,null,null,0,482]
[null,null,null,null,null,null,null,null,null,null,0,483]
[null,null,null,null,null,null,null,null,null,null,0,484]
[null,null,null,null,null,null,null,null,null,null,0,485]
[null,null,null,null,null,null,null,null,null,null,0,486]
[null,null,null,null,null,null,null,null,null,null,0,487]
[null,null,null,null,null,null,null,null,null,null,0,488]
[null,null,null,null,null,null,null,null,null,null,0,489]
[null,null,null,null,null,null,null,null,null,null,0,490]
[null,null,null,null,null,null,null,null,null,null,{"$f":"IF(AND(I496=0,J496=0),0,K495+I496-J496)","v":0},491]
[null,null,null,null,null,null,null,null,null,null,0,492]
[null,null,null,null,null,null,null,null,null,null,0,493]
[null,null,null,null,null,null,null,null,null,null,0,494]
[null,null,null,null,null,null,null,null,null,null,0,495]
[null,null,null,null,null,null,null,null,null,null,0,496]
[null,null,null,null,null,null,null,null,null,null,0,497]
[null,null,null,null,null,null,null,null,null,null,0,498]
[null,null,null,null,null,null,null,null,null,null,0,499]
[null,null,null,null,null,null,null,null,null,null,0,500]
[null,null,null,null,null,null,null,null,null,null,0,501]
[null,null,null,null,null,null,null,null,null,null,0,502]
[null,null,null,null,null,null,null,null,null,null,0,503]
[null,null,null,null,null,null,null,null,null,null,0,504]
[null,null,null,null,null,null,null,null,null,null,0,505]
[null,null,null,null,null,null,null,null,null,null,0,506]
[null,null,null,null,null,null,null,null,null,null,0,507]
[null,null,null,null,null,null,null,null,null,null,0,508]
[null,null,null,null,null,null,null,null,null,null,0,509]
[null,null,null,null,null,null,null,null,null,null,0,510]
[null,null,null,null,null,null,null,null,null,null,0,511]
[null,null,null,null,null,null,null,null,null,null,0,512]
[null,null,null,null,null,null,null,null,null,null,{"$f":"IF(AND(I518=0,J518=0),0,K517+I518-J518)","v":0},513]
[null,null,null,null,null,null,null,null,null,null,0,514]
[null,null,null,null,null,null,null,null,null,null,0,515]
[null,null,null,null,null,null,null,null,null,null,0,516]
[null,null,null,null,null,null,null,null,null,null,0,517]
[null,null,null,null,null,null,null,null,null,null,0,518]
[null,null,null,null,null,null,null,null,null,null,0,519]
[null,null,null,null,null,null,null,null,null,null,0,520]
[null,null,null,null,null,null,null,null,null,null,0,521]
[null,null,null,null,null,null,null,null,null,null,0,522]
[null,null,null,null,null,null,null,null,null,null,0,523]
[null,null,null,null,null,null,null,null,null,null,0,524]
[null,null,null,null,null,null,null,null,null,null,0,525]
[null,null,null,null,null,null,null,null,null,null,{"$f":"IF(AND(I531=0,J531=0),0,K530+I531-J531)","v":0},526]
[null,null,null,null,null,null,null,null,null,null,0,527]
[null,null,null,null,null,null,null,null,null,null,0,528]
[null,null,null,null,null,null,null,null,null,null,0,529]
[null,null,null,null,null,null,null,null,null,null,0,530]
[null,null,null,null,null,null,null,null,null,null,0,531]
[null,null,null,null,null,null,null,null,null,null,0,532]
[null,null,null,null,null,null,null,null,null,null,0,533]
[null,null,null,null,null,null,null,null,null,null,0,534]
[null,null,null,null,null,null,null,null,null,null,0,535]
[null,null,null,null,null,null,null,null,null,null,0,536]
[null,null,null,null,null,null,null,null,null,null,0,537]
[null,null,null,null,null,null,null,null,null,null,0,538]
[null,null,null,null,null,null,null,null,null,null,0,539]
[null,null,null,null,null,null,null,null,null,null,0,540]
[null,null,null,null,null,null,null,null,null,null,0,541]
[null,null,null,null,null,null,null,null,null,null,0,542]
[null,null,null,null,null,null,null,null,null,null,0,543]
[null,null,null,null,null,null,null,null,null,null,0,544]
[null,null,null,null,null,null,null,null,null,null,0,545]
[null,null,null,null,null,null,null,null,null,null,0,546]
[null,null,null,null,null,null,null,null,null,null,0,547]
[null,null,null,null,null,null,null,null,null,null,0,548]
[null,null,null,null,null,null,null,null,null,null,0,549]
[null,null,null,null,null,null,null,null,null,null,0,550]
[null,null,null,null,null,null,null,null,null,null,0,551]
[null,null,null,null,null,null,null,null,null,null,0,552]
[null,null,null,null,null,null,null,null,null,null,0,553]
[null,null,null,null,null,null,null,null,null,null,0,554]
[null,null,null,null,null,null,null,null,null,null,0,555]
[null,null,null,null,null,null,null,null,null,null,0,556]
[null,null,null,null,null,null,null,null,null,null,0,557]
[null,null,null,null,null,null,null,null,null,null,0,558]
[null,null,null,null,null,null,null,null,null,null,0,559]
[null,null,null,null,null,null,null,null,null,null,0,560]
[null,null,null,null,null,null,null,null,null,null,{"$f":"IF(AND(I566=0,J566=0),0,K565+I566-J566)","v":0},561]
[null,null,null,null,null,null,null,null,null,null,0,562]
[null,null,null,null,null,null,null,null,null,null,0,563]

{"sheet":"Kasse Jan","index":2,"n_rows":570,"n_cols":12,"rows_kept":570,"cut":false,"hidden":false,"merged":[[0,9,0,10],[1,9,1,10]]}
[null,"Firma:",null,"Firma",null,null,null,null,"Monat:","Januar 2022"]
[null,"Konto:",null,"Bezeichnung",null,null,null,null,"Nummer:","1000"]
[null,null,null,null,null,null,null,null,{"$f":"SUBTOTAL(9,I6:I565)","v":0},0]
[null,"Tag","Zahlung von / an",null,"Wofür?","Beleg","Konto","MWST","Einnahmen","Ausgaben","Saldo"]
[null,"(TT.MM)",null,null,null,null,null,null,"CHF","CHF",0]
[null,null,null,null,null,null,null,null,null,null,{"$f":"IF(AND(I6=0,J6=0),0,K5+I6-J6)","v":0},1]
[null,null,null,null,null,null,null,null,null,null,{"$f":"IF(AND(I7=0,J7=0),0,K6+I7-J7)","v":0},2]
[null,null,null,null,null,null,null,null,null,null,0,3]
[null,null,null,null,null,null,null,null,null,null,0,4]
[null,null,null,null,null,null,null,null,null,null,0,5]
[null,null,null,null,null,null,null,null,null,null,0,6]
[null,null,null,null,null,null,null,null,null,null,0,7]
[null,null,null,null,null,null,null,null,null,null,0,8]
[null,null,null,null,null,null,null,null,null,null,0,9]
[null,null,null,null,null,null,null,null,null,null,{"$f":"IF(AND(I15=0,J15=0),0,K14+I15-J15)","v":0},10]
[null,null,null,null,null,null,null,null,null,null,{"$f":"IF(AND(I16=0,J16=0),0,K15+I16-J16)","v":0},11]
[null,null,null,null,null,null,null,null,null,null,{"$f":"IF(AND(I17=0,J17=0),0,K16+I17-J17)","v":0},12]
[null,null,null,null,null,null,null,null,null,null,0,13]
[null,null,null,null,null,null,null,null,null,null,0,14]
[null,null,null,null,null,null,null,null,null,null,0,15]
[null,null,null,null,null,null,null,null,null,null,0,16]
[null,null,null,null,null,null,null,null,null,null,0,17]
[null,null,null,null,null,null,null,null,null,null,0,18]
[null,null,null,null,null,null,null,null,null,null,0,19]
[null,null,null,null,null,null,null,null,null,null,0,20]
[null,null,null,null,null,null,null,null,null,null,0,21]
[null,null,null,null,null,null,null,null,null,null,0,22]
[null,null,null,null,null,null,null,null,null,null,0,23]
[null,null,null,null,null,null,null,null,null,null,0,24]
[null,null,null,null,null,null,null,null,null,null,0,25]
[null,null,null,null,null,null,null,null,null,null,0,26]
[null,null,null,null,null,null,null,null,null,null,0,27]
[null,null,null,null,null,null,null,null,null,null,0,28]
[null,null,null,null,null,null,null,null,null,null,0,29]
[null,null,null,null,null,null,null,null,null,null,0,30]
[null,null,null,null,null,null,null,null,null,null,0,31]
[null,null,null,null,null,null,null,null,null,null,0,32]
[null,null,null,null,null,null,null,null,null,null,0,33]
[null,null,null,null,null,null,null,null,null,null,0,34]
[null,null,null,null,null,null,null,null,null,null,0,35]
[null,null,null,null,null,null,null,null,null,null,0,36]
[null,null,null,null,null,null,null,null,null,null,0,37]
[null,null,null,null,null,null,null,null,null,null,0,38]
[null,null,null,null,null,null,null,null,null,null,0,39]
[null,null,null,null,null,null,null,null,null,null,0,40]
[null,null,null,null,null,null,null,null,null,null,0,41]
[null,null,null,null,null,null,null,null,null,null,0,42]
[null,null,null,null,null,null,null,null,null,null,0,43]
[null,null,null,null,null,null,null,null,null,null,0,44]
[null,null,null,null,null,null,null,null,null,null,0,45]
[null,null,null,null,null,null,null,null,null,null,0,46]
[null,null,null,null,null,null,null,null,null,null,0,47]
[null,null,null,null,null,null,null,null,null,null,0,48]
[null,null,null,null,null,null,null,null,null,null,0,49]
[null,null,null,null,null,null,null,null,null,null,0,50]
[null,null,null,null,null,null,null,null,null,null,0,51]
[null,null,null,null,null,null,null,null,null,null,0,52]
[null,null,null,null,null,null,null,null,null,null,0,53]
[null,null,null,null,null,null,null,null,null,null,0,54]
[null,null,null,null,null,null,null,null,null,null,0,55]
[null,null,null,null,null,null,null,null,null,null,0,56]
[null,null,null,null,null,null,null,null,null,null,0,57]
[null,null,null,null,null,null,null,null,null,null,0,58]
[null,null,null,null,null,null,null,null,null,null,0,59]
[null,null,null,null,null,null,null,null,null,null,0,60]
[null,null,null,null,null,null,null,null,null,null,0,61]
[null,null,null,null,null,null,null,null,null,null,0,62]
[null,null,null,null,null,null,null,null,null,null,0,63]
[null,null,null,null,null,null,null,null,null,null,0,64]
[null,null,null,null,null,null,null,null,null,null,0,65]
[null,null,null,null,null,null,null,null,null,null,0,66]
[null,null,null,null,null,null,null,null,null,null,0,67]
[null,null,null,null,null,null,null,null,null,null,{"$f":"IF(AND(I73=0,J73=0),0,K72+I73-J73)","v":0},68]
[null,null,null,null,null,null,null,null,null,null,0,69]
[null,null,null,null,null,null,null,null,null,null,0,70]
[null,null,null,null,null,null,null,null,null,null,0,71]
[null,null,null,null,null,null,null,null,null,null,0,72]
[null,null,null,null,null,null,null,null,null,null,0,73]
[null,null,null,null,null,null,null,null,null,null,0,74]
[null,null,null,null,null,null,null,null,null,null,0,75]
[null,null,null,null,null,null,null,null,null,null,0,76]
[null,null,null,null,null,null,null,null,null,null,0,77]
[null,null,null,null,null,null,null,null,null,null,0,78]
[null,null,null,null,null,null,null,null,null,null,0,79]
[null,null,null,null,null,null,null,null,null,null,0,80]
[null,null,null,null,null,null,null,null,null,null,0,81]
[null,null,null,null,null,null,null,null,null,null,0,82]
[null,null,null,null,null,null,null,null,null,null,0,83]
[null,null,null,null,null,null,null,null,null,null,0,84]
[null,null,null,null,null,null,null,null,null,null,0,85]
[null,null,null,null,null,null,null,null,null,null,0,86]
[null,null,null,null,null,null,null,null,null,null,0,87]
[null,null,null,null,null,null,null,null,null,null,0,88]
[null,null,null,null,null,null,null,null,null,null,0,89]
[null,null,null,null,null,null,null,null,null,null,0,90]
[null,null,null,null,null,null,null,null,null,null,0,91]
[null,null,null,null,null,null,null,null,null,null,0,92]
[null,null,null,null,null,null,null,null,null,null,0,93]
[null,null,null,null,null,null,null,null,null,null,0,94]
[null,null,null,null,null,null,null,null,null,null,0,95]
[null,null,null,null,null,null,null,null,null,null,0,96]
[null,null,null,null,null,null,null,null,null,null,0,97]
[null,null,null,null,null,null,null,null,null,null,0,98]
[null,null,null,null,null,null,null,null,null,null,0,99]
[null,null,null,null,null,null,null,null,null,null,0,100]
[null,null,null,null,null,null,null,null,null,null,0,101]
[null,null,null,null,null,null,null,null,null,null,0,102]
[null,null,null,null,null,null,null,null,null,null,0,103]
[null,null,null,null,null,null,null,null,null,null,0,104]
[null,null,null,null,null,null,null,null,null,null,0,105]
[null,null,null,null,null,null,null,null,null,null,0,106]
[null,null,null,null,null,null,null,null,null,null,0,107]
[null,null,null,null,null,null,null,null,null,null,0,108]
[null,null,null,null,null,null,null,null,null,null,0,109]
[null,null,null,null,null,null,null,null,null,null,0,110]
[null,null,null,null,null,null,null,null,null,null,0,111]
[null,null,null,null,null,null,null,null,null,null,0,112]
[null,null,null,null,null,null,null,null,null,null,0,113]
[null,null,null,null,null,null,null,null,null,null,0,114]
[null,null,null,null,null,null,null,null,null,null,0,115]
[null,null,null,null,null,null,null,null,null,null,0,116]
[null,null,null,null,null,null,null,null,null,null,0,117]
[null,null,null,null,null,null,null,null,null,null,0,118]
[null,null,null,null,null,null,null,null,null,null,0,119]
[null,null,null,null,null,null,null,null,null,null,0,120]
[null,null,null,null,null,null,null,null,null,null,0,121]
[null,null,null,null,null,null,null,null,null,null,0,122]
[null,null,null,null,null,null,null,null,null,null,0,123]
[null,null,null,null,null,null,null,null,null,null,0,124]
[null,null,null,null,null,null,null,null,null,null,0,125]
[null,null,null,null,null,null,null,null,null,null,0,126]
[null,null,null,null,null,null,null,null,null,null,0,127]
[null,null,null,null,null,null,null,null,null,null,0,128]
[null,null,null,null,null,null,null,null,null,null,0,129]
[null,null,null,null,null,null,null,null,null,null,0,130]
[null,null,null,null,null,null,null,null,null,null,0,131]
[null,null,null,null,null,null,null,null,null,null,{"$f":"IF(AND(I137=0,J137=0),0,K136+I137-J137)","v":0},132]
[null,null,null,null,null,null,null,null,null,null,0,133]
[null,null,null,null,null,null,null,null,null,null,0,134]
[null,null,null,null,null,null,null,null,null,null,0,135]
[null,null,null,null,null,null,null,null,null,null,0,136]
[null,null,null,null,null,null,null,null,null,null,0,137]
[null,null,null,null,null,null,null,null,null,null,0,138]
[null,null,null,null,null,null,null,null,null,null,0,139]
[null,null,null,null,null,null,null,null,null,null,0,140]
[null,null,null,null,null,null,null,null,null,null,0,141]
[null,null,null,null,null,null,null,null,null,null,0,142]
[null,null,null,null,null,null,null,null,null,null,0,143]
[null,null,null,null,null,null,null,null,null,null,0,144]
[null,null,null,null,null,null,null,null,null,null,0,145]
[null,null,null,null,null,null,null,null,null,null,0,146]
[null,null,null,null,null,null,null,null,null,null,0,147]
[null,null,null,null,null,null,null,null,null,null,0,148]
[null,null,null,null,null,null,null,null,null,null,0,149]
[null,null,null,null,null,null,null,null,null,null,0,150]
[null,null,null,null,null,null,null,null,null,null,0,151]
[null,null,null,null,null,null,null,null,null,null,0,152]
[null,null,null,null,null,null,null,null,null,null,0,153]
[null,null,null,null,null,null,null,null,null,null,0,154]
[null,null,null,null,null,null,null,null,null,null,0,155]
[null,null,null,null,null,null,null,null,null,null,0,156]
[null,null,null,null,null,null,null,null,null,null,0,157]
[null,null,null,null,null,null,null,null,null,null,0,158]
[null,null,null,null,null,null,null,null,null,null,0,159]
[null,null,null,null,null,null,null,null,null,null,0,160]
[null,null,null,null,null,null,null,null,null,null,0,161]
[null,null,null,null,null,null,null,null,null,null,0,162]
[null,null,null,null,null,null,null,null,null,null,0,163]
[null,null,null,null,null,null,null,null,null,null,0,164]
[null,null,null,null,null,null,null,null,null,null,0,165]
[null,null,null,null,null,null,null,null,null,null,0,166]
[null,null,null,null,null,null,null,null,null,null,0,167]
[null,null,null,null,null,null,null,null,null,null,0,168]
[null,null,null,null,null,null,null,null,null,null,0,169]
[null,null,null,null,null,null,null,null,null,null,0,170]
[null,null,null,null,null,null,null,null,null,null,0,171]
[null,null,null,null,null,null,null,null,null,null,0,172]
[null,null,null,null,null,null,null,null,null,null,0,173]
[null,null,null,null,null,null,null,null,null,null,0,174]
[null,null,null,null,null,null,null,null,null,null,0,175]
[null,null,null,null,null,null,null,null,null,null,0,176]
[null,null,null,null,null,null,null,null,null,null,0,177]
[null,null,null,null,null,null,null,null,null,null,0,178]
[null,null,null,null,null,null,null,null,null,null,0,179]
[null,null,null,null,null,null,null,null,null,null,0,180]
[null,null,null,null,null,null,null,null,null,null,0,181]
[null,null,null,null,null,null,null,null,null,null,0,182]
[null,null,null,null,null,null,null,null,null,null,0,183]
[null,null,null,null,null,null,null,null,null,null,0,184]
[null,null,null,null,null,null,null,null,null,null,0,185]
[null,null,null,null,null,null,null,null,null,null,0,186]
[null,null,null,null,null,null,null,null,null,null,0,187]
[null,null,null,null,null,null,null,null,null,null,0,188]
[null,null,null,null,null,null,null,null,null,null,0,189]
[null,null,null,null,null,null,null,null,null,null,0,190]
[null,null,null,null,null,null,null,null,null,null,0,191]
[null,null,null,null,null,null,null,null,null,null,0,192]
[null,null,null,null,null,null,null,null,null,null,0,193]
[null,null,null,null,null,null,null,null,null,null,0,194]
[null,null,null,null,null,null,null,null,null,null,0,195]
[null,null,null,null,null,null,null,null,null,null,{"$f":"IF(AND(I201=0,J201=0),0,K200+I201-J201)","v":0},196]
[null,null,null,null,null,null,null,null,null,null,0,197]
[null,null,null,null,null,null,null,null,null,null,0,198]
[null,null,null,null,null,null,null,null,null,null,0,199]
[null,null,null,null,null,null,null,null,null,null,0,200]
[null,null,null,null,null,null,null,null,null,null,0,201]
[null,null,null,null,null,null,null,null,null,null,0,202]
[null,null,null,null,null,null,null,null,null,null,0,203]
[null,null,null,null,null,null,null,null,null,null,0,204]
[null,null,null,null,null,null,null,null,null,null,0,205]
[null,null,null,null,null,null,null,null,null,null,0,206]
[null,null,null,null,null,null,null,null,null,null,0,207]
[null,null,null,null,null,null,null,null,null,null,0,208]
[null,null,null,null,null,null,null,null,null,null,0,209]
[null,null,null,null,null,null,null,null,null,null,0,210]
[null,null,null,null,null,null,null,null,null,null,0,211]
[null,null,null,null,null,null,null,null,null,null,0,212]
[null,null,null,null,null,null,null,null,null,null,0,213]
[null,null,null,null,null,null,null,null,null,null,0,214]
[null,null,null,null,null,null,null,null,null,null,0,215]
[null,null,null,null,null,null,null,null,null,null,0,216]
[null,null,null,null,null,null,null,null,null,null,0,217]
[null,null,null,null,null,null,null,null,null,null,0,218]
[null,null,null,null,null,null,null,null,null,null,0,219]
[null,null,null,null,null,null,null,null,null,null,0,220]
[null,null,null,null,null,null,null,null,null,null,0,221]
[null,null,null,null,null,null,null,null,null,null,0,222]
[null,null,null,null,null,null,null,null,null,null,0,223]
[null,null,null,null,null,null,null,null,null,null,0,224]
[null,null,null,null,null,null,null,null,null,null,0,225]
[null,null,null,null,null,null,null,null,null,null,0,226]
[null,null,null,null,null,null,null,null,null,null,0,227]
[null,null,null,null,null,null,null,null,null,null,0,228]
[null,null,null,null,null,null,null,null,null,null,0,229]
[null,null,null,null,null,null,null,null,null,null,0,230]
[null,null,null,null,null,null,null,null,null,null,0,231]
[null,null,null,null,null,null,null,null,null,null,0,232]
[null,null,null,null,null,null,null,null,null,null,0,233]
[null,null,null,null,null,null,null,null,null,null,0,234]
[null,null,null,null,null,null,null,null,null,null,0,235]
[null,null,null,null,null,null,null,null,null,null,0,236]
[null,null,null,null,null,null,null,null,null,null,0,237]
[null,null,null,null,null,null,null,null,null,null,0,238]
[null,null,null,null,null,null,null,null,null,null,0,239]
[null,null,null,null,null,null,null,null,null,null,0,240]
[null,null,null,null,null,null,null,null,null,null,0,241]
[null,null,null,null,null,null,null,null,null,null,0,242]
[null,null,null,null,null,null,null,null,null,null,0,243]
[null,null,null,null,null,null,null,null,null,null,0,244]
[null,null,null,null,null,null,null,null,null,null,0,245]
[null,null,null,null,null,null,null,null,null,null,0,246]
[null,null,null,null,null,null,null,null,null,null,0,247]
[null,null,null,null,null,null,null,null,null,null,0,248]
[null,null,null,null,null,null,null,null,null,null,0,249]
[null,null,null,null,null,null,null,null,null,null,0,250]
[null,null,null,null,null,null,null,null,null,null,0,251]
[null,null,null,null,null,null,null,null,null,null,0,252]
[null,null,null,null,null,null,null,null,null,null,0,253]
[null,null,null,null,null,null,null,null,null,null,0,254]
[null,null,null,null,null,null,null,null,null,null,0,255]
[null,null,null,null,null,null,null,null,null,null,0,256]
[null,null,null,null,null,null,null,null,null,null,0,257]
[null,null,null,null,null,null,null,null,null,null,0,258]
[null,null,null,null,null,null,null,null,null,null,0,259]
[null,null,null,null,null,null,null,null,null,null,{"$f":"IF(AND(I265=0,J265=0),0,K264+I265-J265)","v":0},260]
[null,null,null,null,null,null,null,null,null,null,0,261]
[null,null,null,null,null,null,null,null,null,null,0,262]
[null,null,null,null,null,null,null,null,null,null,0,263]
[null,null,null,null,null,null,null,null,null,null,0,264]
[null,null,null,null,null,null,null,null,null,null,0,265]
[null,null,null,null,null,null,null,null,null,null,0,266]
[null,null,null,null,null,null,null,null,null,null,0,267]
[null,null,null,null,null,null,null,null,null,null,0,268]
[null,null,null,null,null,null,null,null,null,null,0,269]
[null,null,null,null,null,null,null,null,null,null,0,270]
[null,null,null,null,null,null,null,null,null,null,0,271]
[null,null,null,null,null,null,null,null,null,null,0,272]
[null,null,null,null,null,null,null,null,null,null,0,273]
[null,null,null,null,null,null,null,null,null,null,0,274]
[null,null,null,null,null,null,null,null,null,null,0,275]
[null,null,null,null,null,null,null,null,null,null,0,276]
[null,null,null,null,null,null,null,null,null,null,0,277]
[null,null,null,null,null,null,null,null,null,null,0,278]
[null,null,null,null,null,null,null,null,null,null,0,279]
[null,null,null,null,null,null,null,null,null,null,0,280]
[null,null,null,null,null,null,null,null,null,null,0,281]
[null,null,null,null,null,null,null,null,null,null,0,282]
[null,null,null,null,null,null,null,null,null,null,0,283]
[null,null,null,null,null,null,null,null,null,null,0,284]
[null,null,null,null,null,null,null,null,null,null,0,285]
[null,null,null,null,null,null,null,null,null,null,0,286]
[null,null,null,null,null,null,null,null,null,null,0,287]
[null,null,null,null,null,null,null,null,null,null,0,288]
[null,null,null,null,null,null,null,null,null,null,0,289]
[null,null,null,null,null,null,null,null,null,null,0,290]
[null,null,null,null,null,null,null,null,null,null,0,291]
[null,null,null,null,null,null,null,null,null,null,0,292]
[null,null,null,null,null,null,null,null,null,null,0,293]
[null,null,null,null,null,null,null,null,null,null,0,294]
[null,null,null,null,null,null,null,null,null,null,0,295]
[null,null,null,null,null,null,null,null,null,null,0,296]
[null,null,null,null,null,null,null,null,null,null,0,297]
[null,null,null,null,null,null,null,null,null,null,0,298]
[null,null,null,null,null,null,null,null,null,null,0,299]
[null,null,null,null,null,null,null,null,null,null,0,300]
[null,null,null,null,null,null,null,null,null,null,0,301]
[null,null,null,null,null,null,null,null,null,null,0,302]
[null,null,null,null,null,null,null,null,null,null,0,303]
[null,null,null,null,null,null,null,null,null,null,0,304]
[null,null,null,null,null,null,null,null,null,null,0,305]
[null,null,null,null,null,null,null,null,null,null,0,306]
[null,null,null,null,null,null,null,null,null,null,0,307]
[null,null,null,null,null,null,null,null,null,null,0,308]
[null,null,null,null,null,null,null,null,null,null,0,309]
[null,null,null,null,null,null,null,null,null,null,0,310]
[null,null,null,null,null,null,null,null,null,null,0,311]
[null,null,null,null,null,null,null,null,null,null,0,312]
[null,null,null,null,null,null,null,null,null,null,0,313]
[null,null,null,null,null,null,null,null,null,null,0,314]
[null,null,null,null,null,null,null,null,null,null,0,315]
[null,null,null,null,null,null,null,null,null,null,0,316]
[null,null,null,null,null,null,null,null,null,null,0,317]
[null,null,null,null,null,null,null,null,null,null,0,318]
[null,null,null,null,null,null,null,null,null,null,0,319]
[null,null,null,null,null,null,null,null,null,null,0,320]
[null,null,null,null,null,null,null,null,null,null,0,321]
[null,null,null,null,null,null,null,null,null,null,0,322]
[null,null,null,null,null,null,null,null,null,null,0,323]
[null,null,null,null,null,null,null,null,null,null,{"$f":"IF(AND(I329=0,J329=0),0,K328+I329-J329)","v":0},324]
[null,null,null,null,null,null,null,null,null,null,0,325]
[null,null,null,null,null,null,null,null,null,null,0,326]
[null,null,null,null,null,null,null,null,null,null,0,327]
[null,null,null,null,null,null,null,null,null,null,0,328]
[null,null,null,null,null,null,null,null,null,null,0,329]
[null,null,null,null,null,null,null,null,null,null,0,330]
[null,null,null,null,null,null,null,null,null,null,0,331]
[null,null,null,null,null,null,null,null,null,null,0,332]
[null,null,null,null,null,null,null,null,null,null,0,333]
[null,null,null,null,null,null,null,null,null,null,0,334]
[null,null,null,null,null,null,null,null,null,null,0,335]
[null,null,null,null,null,null,null,null,null,null,0,336]
[null,null,null,null,null,null,null,null,null,null,0,337]
[null,null,null,null,null,null,null,null,null,null,0,338]
[null,null,null,null,null,null,null,null,null,null,0,339]
[null,null,null,null,null,null,null,null,null,null,0,340]
[null,null,null,null,null,null,null,null,null,null,0,341]
[null,null,null,null,null,null,null,null,null,null,0,342]
[null,null,null,null,null,null,null,null,null,null,0,343]
[null,null,null,null,null,null,null,null,null,null,0,344]
[null,null,null,null,null,null,null,null,null,null,0,345]
[null,null,null,null,null,null,null,null,null,null,0,346]
[null,null,null,null,null,null,null,null,null,null,0,347]
[null,null,null,null,null,null,null,null,null,null,0,348]
[null,null,null,null,null,null,null,null,null,null,0,349]
[null,null,null,null,null,null,null,null,null,null,0,350]
[null,null,null,null,null,null,null,null,null,null,0,351]
[null,null,null,null,null,null,null,null,null,null,0,352]
[null,null,null,null,null,null,null,null,null,null,0,353]
[null,null,null,null,null,null,null,null,null,null,0,354]
[null,null,null,null,null,null,null,null,null,null,0,355]
[null,null,null,null,null,null,null,null,null,null,0,356]
[null,null,null,null,null,null,null,null,null,null,0,357]
[null,null,null,null,null,null,null,null,null,null,0,358]
[null,null,null,null,null,null,null,null,null,null,0,359]
[null,null,null,null,null,null,null,null,null,null,0,360]
[null,null,null,null,null,null,null,null,null,null,0,361]
[null,null,null,null,null,null,null,null,null,null,0,362]
[null,null,null,null,null,null,null,null,null,null,0,363]
[null,null,null,null,null,null,null,null,null,null,0,364]
[null,null,null,null,null,null,null,null,null,null,0,365]
[null,null,null,null,null,null,null,null,null,null,0,366]
[null,null,null,null,null,null,null,null,null,null,0,367]
[null,null,null,null,null,null,null,null,null,null,0,368]
[null,null,null,null,null,null,null,null,null,null,0,369]
[null,null,null,null,null,null,null,null,null,null,0,370]
[null,null,null,null,null,null,null,null,null,null,0,371]
[null,null,null,null,null,null,null,null,null,null,0,372]
[null,null,null,null,null,null,null,null,null,null,0,373]
[null,null,null,null,null,null,null,null,null,null,0,374]
[null,null,null,null,null,null,null,null,null,null,0,375]
[null,null,null,null,null,null,null,null,null,null,0,376]
[null,null,null,null,null,null,null,null,null,null,0,377]
[null,null,null,null,null,null,null,null,null,null,0,378]
[null,null,null,null,null,null,null,null,null,null,0,379]
[null,null,null,null,null,null,null,null,null,null,0,380]
[null,null,null,null,null,null,null,null,null,null,0,381]
[null,null,null,null,null,null,null,null,null,null,0,382]
[null,null,null,null,null,null,null,null,null,null,0,383]
[null,null,null,null,null,null,null,null,null,null,0,384]
[null,null,null,null,null,null,null,null,null,null,0,385]
[null,null,null,null,null,null,null,null,null,null,0,386]
[null,null,null,null,null,null,null,null,null,null,0,387]
[null,null,null,null,null,null,null,null,null,null,{"$f":"IF(AND(I393=0,J393=0),0,K392+I393-J393)","v":0},388]
[null,null,null,null,null,null,null,null,null,null,0,389]
[null,null,null,null,null,null,null,null,null,null,0,390]
[null,null,null,null,null,null,null,null,null,null,0,391]
[null,null,null,null,null,null,null,null,null,null,0,392]
[null,null,null,null,null,null,null,null,null,null,0,393]
[null,null,null,null,null,null,null,null,null,null,0,394]
[null,null,null,null,null,null,null,null,null,null,0,395]
[null,null,null,null,null,null,null,null,null,null,0,396]
[null,null,null,null,null,null,null,null,null,null,0,397]
[null,null,null,null,null,null,null,null,null,null,0,398]
[null,null,null,null,null,null,null,null,null,null,0,399]
[null,null,null,null,null,null,null,null,null,null,0,400]
[null,null,null,null,null,null,null,null,null,null,0,401]
[null,null,null,null,null,null,null,null,null,null,0,402]
[null,null,null,null,null,null,null,null,null,null,0,403]
[null,null,null,null,null,null,null,null,null,null,0,404]
[null,null,null,null,null,null,null,null,null,null,0,405]
[null,null,null,null,null,null,null,null,null,null,0,406]
[null,null,null,null,null,null,null,null,null,null,0,407]
[null,null,null,null,null,null,null,null,null,null,0,408]
[null,null,null,null,null,null,null,null,null,null,0,409]
[null,null,null,null,null,null,null,null,null,null,0,410]
[null,null,null,null,null,null,null,null,null,null,0,411]
[null,null,null,null,null,null,null,null,null,null,0,412]
[null,null,null,null,null,null,null,null,null,null,0,413]
[null,null,null,null,null,null,null,null,null,null,0,414]
[null,null,null,null,null,null,null,null,null,null,0,415]
[null,null,null,null,null,null,null,null,null,null,0,416]
[null,null,null,null,null,null,null,null,null,null,0,417]
[null,null,null,null,null,null,null,null,null,null,0,418]
[null,null,null,null,null,null,null,null,null,null,0,419]
[null,null,null,null,null,null,null,null,null,null,0,420]
[null,null,null,null,null,null,null,null,null,null,0,421]
[null,null,null,null,null,null,null,null,null,null,0,422]
[null,null,null,null,null,null,null,null,null,null,0,423]
[null,null,null,null,null,null,null,null,null,null,0,424]
[null,null,null,null,null,null,null,null,null,null,0,425]
[null,null,null,null,null,null,null,null,null,null,0,426]
[null,null,null,null,null,null,null,null,null,null,0,427]
[null,null,null,null,null,null,null,null,null,null,0,428]
[null,null,null,null,null,null,null,null,null,null,0,429]
[null,null,null,null,null,null,null,null,null,null,0,430]
[null,null,null,null,null,null,null,null,null,null,0,431]
[null,null,null,null,null,null,null,null,null,null,0,432]
[null,null,null,null,null,null,null,null,null,null,0,433]
[null,null,null,null,null,null,null,null,null,null,0,434]
[null,null,null,null,null,null,null,null,null,null,0,435]
[null,null,null,null,null,null,null,null,null,null,0,436]
[null,null,null,null,null,null,null,null,null,null,0,437]
[null,null,null,null,null,null,null,null,null,null,0,438]
[null,null,null,null,null,null,null,null,null,null,0,439]
[null,null,null,null,null,null,null,null,null,null,0,440]
[null,null,null,null,null,null,null,null,null,null,0,441]
[null,null,null,null,null,null,null,null,null,null,0,442]
[null,null,null,null,null,null,null,null,null,null,0,443]
[null,null,null,null,null,null,null,null,null,null,0,444]
[null,null,null,null,null,null,null,null,null,null,0,445]
[null,null,null,null,null,null,null,null,null,null,0,446]
[null,null,null,null,null,null,null,null,null,null,0,447]
[null,null,null,null,null,null,null,null,null,null,0,448]
[null,null,null,null,null,null,null,null,null,null,0,449]
[null,null,null,null,null,null,null,null,null,null,0,450]
[null,null,null,null,null,null,null,null,null,null,0,451]
[null,null,null,null,null,null,null,null,null,null,{"$f":"IF(AND(I457=0,J457=0),0,K456+I457-J457)","v":0},452]
[null,null,null,null,null,null,null,null,null,null,0,453]
[null,null,null,null,null,null,null,null,null,null,0,454]
[null,null,null,null,null,null,null,null,null,null,0,455]
[null,null,null,null,null,null,null,null,null,null,0,456]
[null,null,null,null,null,null,null,null,null,null,0,457]
[null,null,null,null,null,null,null,null,null,null,0,458]
[null,null,null,null,null,null,null,null,null,null,0,459]
[null,null,null,null,null,null,null,null,null,null,0,460]
[null,null,null,null,null,null,null,null,null,null,0,461]
[null,null,null,null,null,null,null,null,null,null,0,462]
[null,null,null,null,null,null,null,null,null,null,0,463]
[null,null,null,null,null,null,null,null,null,null,0,464]
[null,null,null,null,null,null,null,null,null,null,0,465]
[null,null,null,null,null,null,null,null,null,null,0,466]
[null,null,null,null,null,null,null,null,null,null,0,467]
[null,null,null,null,null,null,null,null,null,null,0,468]
[null,null,null,null,null,null,null,null,null,null,0,469]
[null,null,null,null,null,null,null,null,null,null,0,470]
[null,null,null,null,null,null,null,null,null,null,0,471]
[null,null,null,null,null,null,null,null,null,null,0,472]
[null,null,null,null,null,null,null,null,null,null,0,473]
[null,null,null,null,null,null,null,null,null,null,0,474]
[null,null,null,null,null,null,null,null,null,null,0,475]
[null,null,null,null,null,null,null,null,null,null,0,476]
[null,null,null,null,null,null,null,null,null,null,0,477]
[null,null,null,null,null,null,null,null,null,null,0,478]
[null,null,null,null,null,null,null,null,null,null,0,479]
[null,null,null,null,null,null,null,null,null,null,0,480]
[null,null,null,null,null,null,null,null,null,null,0,481]
[null,null,null,null,null,null,null,null,null,null,0,482]
[null,null,null,null,null,null,null,null,null,null,0,483]
[null,null,null,null,null,null,null,null,null,null,0,484]
[null,null,null,null,null,null,null,null,null,null,0,485]
[null,null,null,null,null,null,null,null,null,null,0,486]
[null,null,null,null,null,null,null,null,null,null,0,487]
[null,null,null,null,null,null,null,null,null,null,0,488]
[null,null,null,null,null,null,null,null,null,null,0,489]
[null,null,null,null,null,null,null,null,null,null,0,490]
[null,null,null,null,null,null,null,null,null,null,0,491]
[null,null,null,null,null,null,null,null,null,null,0,492]
[null,null,null,null,null,null,null,null,null,null,0,493]
[null,null,null,null,null,null,null,null,null,null,0,494]
[null,null,null,null,null,null,null,null,null,null,0,495]
[null,null,null,null,null,null,null,null,null,null,0,496]
[null,null,null,null,null,null,null,null,null,null,0,497]
[null,null,null,null,null,null,null,null,null,null,0,498]
[null,null,null,null,null,null,null,null,null,null,0,499]
[null,null,null,null,null,null,null,null,null,null,0,500]
[null,null,null,null,null,null,null,null,null,null,0,501]
[null,null,null,null,null,null,null,null,null,null,0,502]
[null,null,null,null,null,null,null,null,null,null,0,503]
[null,null,null,null,null,null,null,null,null,null,0,504]
[null,null,null,null,null,null,null,null,null,null,0,505]
[null,null,null,null,null,null,null,null,null,null,0,506]
[null,null,null,null,null,null,null,null,null,null,0,507]
[null,null,null,null,null,null,null,null,null,null,0,508]
[null,null,null,null,null,null,null,null,null,null,0,509]
[null,null,null,null,null,null,null,null,null,null,0,510]
[null,null,null,null,null,null,null,null,null,null,0,511]
[null,null,null,null,null,null,null,null,null,null,0,512]
[null,null,null,null,null,null,null,null,null,null,0,513]
[null,null,null,null,null,null,null,null,null,null,0,514]
[null,null,null,null,null,null,null,null,null,null,0,515]
[null,null,null,null,null,null,null,null,null,null,{"$f":"IF(AND(I521=0,J521=0),0,K520+I521-J521)","v":0},516]
[null,null,null,null,null,null,null,null,null,null,0,517]
[null,null,null,null,null,null,null,null,null,null,0,518]
[null,null,null,null,null,null,null,null,null,null,0,519]
[null,null,null,null,null,null,null,null,null,null,0,520]
[null,null,null,null,null,null,null,null,null,null,0,521]
[null,null,null,null,null,null,null,null,null,null,0,522]
[null,null,null,null,null,null,null,null,null,null,0,523]
[null,null,null,null,null,null,null,null,null,null,0,524]
[null,null,null,null,null,null,null,null,null,null,0,525]
[null,null,null,null,null,null,null,null,null,null,0,526]
[null,null,null,null,null,null,null,null,null,null,0,527]
[null,null,null,null,null,null,null,null,null,null,0,528]
[null,null,null,null,null,null,null,null,null,null,0,529]
[null,null,null,null,null,null,null,null,null,null,0,530]
[null,null,null,null,null,null,null,null,null,null,0,531]
[null,null,null,null,null,null,null,null,null,null,0,532]
[null,null,null,null,null,null,null,null,null,null,0,533]
[null,null,null,null,null,null,null,null,null,null,0,534]
[null,null,null,null,null,null,null,null,null,null,0,535]
[null,null,null,null,null,null,null,null,null,null,0,536]
[null,null,null,null,null,null,null,null,null,null,0,537]
[null,null,null,null,null,null,null,null,null,null,0,538]
[null,null,null,null,null,null,null,null,null,null,0,539]
[null,null,null,null,null,null,null,null,null,null,0,540]
[null,null,null,null,null,null,null,null,null,null,0,541]
[null,null,null,null,null,null,null,null,null,null,0,542]
[null,null,null,null,null,null,null,null,null,null,0,543]
[null,null,null,null,null,null,null,null,null,null,0,544]
[null,null,null,null,null,null,null,null,null,null,0,545]
[null,null,null,null,null,null,null,null,null,null,0,546]
[null,null,null,null,null,null,null,null,null,null,0,547]
[null,null,null,null,null,null,null,null,null,null,0,548]
[null,null,null,null,null,null,null,null,null,null,0,549]
[null,null,null,null,null,null,null,null,null,null,0,550]
[null,null,null,null,null,null,null,null,null,null,0,551]
[null,null,null,null,null,null,null,null,null,null,0,552]
[null,null,null,null,null,null,null,null,null,null,0,553]
[null,null,null,null,null,null,null,null,null,null,0,554]
[null,null,null,null,null,null,null,null,null,null,0,555]
[null,null,null,null,null,null,null,null,null,null,0,556]
[null,null,null,null,null,null,null,null,null,null,0,557]
[null,null,null,null,null,null,null,null,null,null,0,558]
[null,null,null,null,null,null,null,null,null,null,0,559]
[null,null,null,null,null,null,null,null,null,null,0,560]
[null,null,null,null,null,null,null,null,null,null,0,561]
[null,null,null,null,null,null,null,null,null,null,0,562]
[null,null,null,null,null,null,null,null,null,null,0,563]
[null,null,null,null,null,null,null,null,null,null,0]
[null,null,null,null,null,null,null,null,null,null,0]